Workbook

Sheet 은평구총괄
B1: 은평구 등록장애인 현황 (2025. 8월 말 기준)
B3: 서울특별시 은평구 | J3: (단위 : 명)
B5: 자치구 | C5: 장애유형 | D5: 합계 | G5: 심한 장애 | J5: 심하지 않은 장애
D6: 계 | E6: 남 | F6: 여 | G6: 계 | H6: 남 | I6: 여 | J6: 계 | K6: 남 | L6: 여
B7: 은평구 | C7: 합 계 | D7: 21234 | E7: 12342 | F7: 8892 | G7: 8081 | H7: 5021 | I7: 3060 | J7: 13153 | K7: 7321 | L7: 5832
C8: 지체 | D8: 8249 | E8: 4492 | F8: 3757 | G8: 1346 | H8: 859 | I8: 487 | J8: 6903 | K8: 3633 | L8: 3270
C9: 시각 | D9: 2263 | E9: 1329 | F9: 934 | G9: 431 | H9: 232 | I9: 199 | J9: 1832 | K9: 1097 | L9: 735
C10: 청각 | D10: 3355 | E10: 1855 | F10: 1500 | G10: 613 | H10: 301 | I10: 312 | J10: 2742 | K10: 1554 | L10: 1188
C11: 언어 | D11: 165 | E11: 119 | F11: 46 | G11: 92 | H11: 66 | I11: 26 | J11: 73 | K11: 53 | L11: 20
C12: 지적 | D12: 1894 | E12: 1243 | F12: 651 | G12: 1894 | H12: 1243 | I12: 651 | J12: 0 | K12: 0 | L12: 0
C13: 뇌병변 | D13: 2069 | E13: 1227 | F13: 842 | G13: 1150 | H13: 648 | I13: 502 | J13: 919 | K13: 579 | L13: 340
C14: 자폐성 | D14: 518 | E14: 428 | F14: 90 | G14: 518 | H14: 428 | I14: 90 | J14: 0 | K14: 0 | L14: 0
C15: 정신 | D15: 1120 | E15: 677 | F15: 443 | G15: 1081 | H15: 658 | I15: 423 | J15: 39 | K15: 19 | L15: 20
C16: 신장 | D16: 998 | E16: 596 | F16: 402 | G16: 779 | H16: 471 | I16: 308 | J16: 219 | K16: 125 | L16: 94
C17: 심장 | D17: 44 | E17: 26 | F17: 18 | G17: 30 | H17: 14 | I17: 16 | J17: 14 | K17: 12 | L17: 2
C18: 호흡기 | D18: 109 | E18: 76 | F18: 33 | G18: 102 | H18: 74 | I18: 28 | J18: 7 | K18: 2 | L18: 5
C19: 간 | D19: 169 | E19: 108 | F19: 61 | G19: 7 | H19: 5 | I19: 2 | J19: 162 | K19: 103 | L19: 59
C20: 안면 | D20: 24 | E20: 14 | F20: 10 | G20: 9 | H20: 6 | I20: 3 | J20: 15 | K20: 8 | L20: 7
C21: 장루.요루 | D21: 194 | E21: 120 | F21: 74 | G21: 18 | H21: 10 | I21: 8 | J21: 176 | K21: 110 | L21: 66
C22: 뇌전증 | D22: 63 | E22: 32 | F22: 31 | G22: 11 | H22: 6 | I22: 5 | J22: 52 | K22: 26 | L22: 26

Sheet 유형별
A1: 은평구 동별 장애인현황(유형별) (2025. 8월말)
A2: 동별 | B2: 합계 | E2: 지체 | H2: 시각 | K2: 청각 | N2: 언어 | Q2: 지적 | T2: 뇌병변 | W2: 자폐 | Z2: 정신 | AC2: 신장 | AF2: 심장 | AI2: 호흡기 | AL2: 간 | AO2: 안면 | AR2: 장루.요루 | AU2: 뇌전증
B3: 합계 | C3: 남성 | D3: 여성 | E3: 소계 | F3: 남성 | G3: 여성 | H3: 소계 | I3: 남성 | J3: 여성 | K3: 소계 | L3: 남성 | M3: 여성 | N3: 소계 | O3: 남성 | P3: 여성 | Q3: 소계 | R3: 남성 | S3: 여성 | T3: 소계 | U3: 남성 | V3: 여성 | W3: 소계 | X3: 남성 | Y3: 여성 | Z3: 소계 | AA3: 남성 | AB3: 여성 | AC3: 소계 | AD3: 남성 | AE3: 여성 | AF3: 소계 | AG3: 남성 | AH3: 여성 | AI3: 소계 | AJ3: 남성 | AK3: 여성 | AL3: 소계 | AM3: 남성 | AN3: 여성 | AO3: 소계 | AP3: 남성 | AQ3: 여성 | AR3: 소계 | AS3: 남성 | AT3: 여성 | AU3: 소계 | AV3: 남성 | AW3: 여성
A4: 합 계 | B4: =SUM(B5:B20) -> 21234 | C4: =SUM(C5:C20) -> 12342 | D4: =SUM(D5:D20) -> 8892 | E4: =SUM(E5:E20) -> 8249 | F4: =SUM(F5:F20) -> 4492 | G4: 3757 | H4: 2263 | I4: 1329 | J4: 934 | K4: 3355 | L4: 1855 | M4: 1500 | N4: 165 | O4: 119 | P4: 46 | Q4: 1894 | R4: 1243 | S4: 651 | T4: 2069 | U4: 1227 | V4: 842 | W4: 518 | X4: 428 | Y4: 90 | Z4: 1120 | AA4: 677 | AB4: 443 | AC4: 998 | AD4: 596 | AE4: 402 | AF4: 44 | AG4: 26 | AH4: 18 | AI4: 109 | AJ4: 76 | AK4: 33 | AL4: 169 | AM4: 108 | AN4: 61 | AO4: 24 | AP4: 14 | AQ4: 10 | AR4: 194 | AS4: 120 | AT4: 74 | AU4: 63 | AV4: 32 | AW4: 31
A5: 녹번동 | B5: =C5+D5 -> 1626 | C5: =SUM(F5,I5,L5,O5,R5,U5,X5,AA5,AD5,AG5,AJ5,AM5,AP5,AS5,AV5) -> 938 | D5: =SUM(G5,J5,M5,P5,S5,V5,Y5,AB5,AE5,AH5,AK5,AN5,AQ5,AT5,AW5) -> 688 | E5: 677 | F5: 373 | G5: 304 | H5: 174 | I5: 114 | J5: 60 | K5: 295 | L5: 161 | M5: 134 | N5: 13 | O5: 9 | P5: 4 | Q5: 112 | R5: 71 | S5: 41 | T5: 153 | U5: 81 | V5: 72 | W5: 23 | X5: 17 | Y5: 6 | Z5: 65 | AA5: 35 | AB5: 30 | AC5: 78 | AD5: 50 | AE5: 28 | AF5: 2 | AG5: 1 | AH5: 1 | AI5: 4 | AJ5: 2 | AK5: 2 | AL5: 9 | AM5: 8 | AN5: 1 | AO5: 3 | AP5: 3 | AQ5: 0 | AR5: 17 | AS5: 12 | AT5: 5 | AU5: 1 | AV5: 1 | AW5: 0
A6: 불광1동 | B6: =C6+D6 -> 1608 | C6: 903 | D6: =SUM(G6,J6,M6,P6,S6,V6,Y6,AB6,AE6,AH6,AK6,AN6,AQ6,AT6,AW6) -> 705 | E6: 640 | F6: 350 | G6: 290 | H6: 182 | I6: 104 | J6: 78 | K6: 254 | L6: 147 | M6: 107 | N6: 13 | O6: 9 | P6: 4 | Q6: 116 | R6: 68 | S6: 48 | T6: 155 | U6: 85 | V6: 70 | W6: 33 | X6: 27 | Y6: 6 | Z6: 68 | AA6: 35 | AB6: 33 | AC6: 97 | AD6: 48 | AE6: 49 | AF6: 4 | AG6: 1 | AH6: 3 | AI6: 7 | AJ6: 7 | AK6: 0 | AL6: 18 | AM6: 10 | AN6: 8 | AO6: 1 | AP6: 1 | AQ6: 0 | AR6: 15 | AS6: 8 | AT6: 7 | AU6: 5 | AV6: 3 | AW6: 2
A7: 불광2동 | B7: 1434 | C7: 836 | D7: 598 | E7: 544 | F7: 305 | G7: 239 | H7: 166 | I7: 112 | J7: 54 | K7: 255 | L7: 145 | M7: 110 | N7: 15 | O7: 14 | P7: 1 | Q7: 116 | R7: 72 | S7: 44 | T7: 125 | U7: 74 | V7: 51 | W7: 29 | X7: 29 | Y7: 0 | Z7: 72 | AA7: 27 | AB7: 45 | AC7: 71 | AD7: 39 | AE7: 32 | AF7: 3 | AG7: 3 | AH7: 0 | AI7: 2 | AJ7: 2 | AK7: 0 | AL7: 7 | AM7: 4 | AN7: 3 | AO7: 3 | AP7: 1 | AQ7: 2 | AR7: 16 | AS7: 5 | AT7: 11 | AU7: 10 | AV7: 4 | AW7: 6
A8: 갈현1동 | B8: 680 | C8: 386 | D8: 294 | E8: 268 | F8: 140 | G8: 128 | H8: 86 | I8: 49 | J8: 37 | K8: 107 | L8: 59 | M8: 48 | N8: 4 | O8: 3 | P8: 1 | Q8: 57 | R8: 37 | S8: 20 | T8: 56 | U8: 38 | V8: 18 | W8: 19 | X8: 17 | Y8: 2 | Z8: 31 | AA8: 16 | AB8: 15 | AC8: 30 | AD8: 14 | AE8: 16 | AF8: 1 | AG8: 1 | AH8: 0 | AI8: 2 | AJ8: 2 | AK8: 0 | AL8: 8 | AM8: 5 | AN8: 3 | AO8: 0 | AP8: 0 | AQ8: 0 | AR8: 9 | AS8: 4 | AT8: 5 | AU8: 2 | AV8: 1 | AW8: 1
A9: 갈현2동 | B9: 1260 | C9: 733 | D9: 527 | E9: 508 | F9: 277 | G9: 231 | H9: 128 | I9: 81 | J9: 47 | K9: 201 | L9: 120 | M9: 81 | N9: 18 | O9: 14 | P9: 4 | Q9: 108 | R9: 68 | S9: 40 | T9: 109 | U9: 66 | V9: 43 | W9: 22 | X9: 15 | Y9: 7 | Z9: 73 | AA9: 32 | AB9: 41 | AC9: 57 | AD9: 37 | AE9: 20 | AF9: 5 | AG9: 2 | AH9: 3 | AI9: 7 | AJ9: 6 | AK9: 1 | AL9: 13 | AM9: 8 | AN9: 5 | AO9: 0 | AP9: 0 | AQ9: 0 | AR9: 8 | AS9: 6 | AT9: 2 | AU9: 3 | AV9: 1 | AW9: 2
A10: 구산동 | B10: 2103 | C10: 1451 | D10: 652 | E10: 579 | F10: 326 | G10: 253 | H10: 163 | I10: 99 | J10: 64 | K10: 232 | L10: 134 | M10: 98 | N10: 14 | O10: 10 | P10: 4 | Q10: 403 | R10: 312 | S10: 91 | T10: 224 | U10: 162 | V10: 62 | W10: 50 | X10: 40 | Y10: 10 | Z10: 308 | AA10: 271 | AB10: 37 | AC10: 65 | AD10: 47 | AE10: 18 | AF10: 0 | AG10: 0 | AH10: 0 | AI10: 22 | AJ10: 15 | AK10: 7 | AL10: 17 | AM10: 15 | AN10: 2 | AO10: 2 | AP10: 1 | AQ10: 1 | AR10: 20 | AS10: 16 | AT10: 4 | AU10: 4 | AV10: 3 | AW10: 1
A11: 대조동 | B11: 1223 | C11: 704 | D11: 519 | E11: 488 | F11: 266 | G11: 222 | H11: 145 | I11: 77 | J11: 68 | K11: 204 | L11: 118 | M11: 86 | N11: 7 | O11: 5 | P11: 2 | Q11: 72 | R11: 48 | S11: 24 | T11: 117 | U11: 68 | V11: 49 | W11: 28 | X11: 23 | Y11: 5 | Z11: 69 | AA11: 35 | AB11: 34 | AC11: 66 | AD11: 44 | AE11: 22 | AF11: 2 | AG11: 1 | AH11: 1 | AI11: 6 | AJ11: 5 | AK11: 1 | AL11: 4 | AM11: 3 | AN11: 1 | AO11: 1 | AP11: 1 | AQ11: 0 | AR11: 11 | AS11: 9 | AT11: 2 | AU11: 3 | AV11: 1 | AW11: 2
A12: 응암1동 | B12: 1313 | C12: 712 | D12: 601 | E12: 564 | F12: 291 | G12: 273 | H12: 152 | I12: 85 | J12: 67 | K12: 218 | L12: 102 | M12: 116 | N12: 6 | O12: 5 | P12: 1 | Q12: 74 | R12: 44 | S12: 30 | T12: 128 | U12: 77 | V12: 51 | W12: 34 | X12: 29 | Y12: 5 | Z12: 50 | AA12: 29 | AB12: 21 | AC12: 55 | AD12: 28 | AE12: 27 | AF12: 5 | AG12: 3 | AH12: 2 | AI12: 5 | AJ12: 5 | AK12: 0 | AL12: 8 | AM12: 4 | AN12: 4 | AO12: 2 | AP12: 2 | AQ12: 0 | AR12: 9 | AS12: 7 | AT12: 2 | AU12: 3 | AV12: 1 | AW12: 2
A13: 응암2동 | B13: 961 | C13: 533 | D13: 428 | E13: 363 | F13: 196 | G13: 167 | H13: 99 | I13: 53 | J13: 46 | K13: 153 | L13: 75 | M13: 78 | N13: 8 | O13: 6 | P13: 2 | Q13: 71 | R13: 45 | S13: 26 | T13: 98 | U13: 53 | V13: 45 | W13: 36 | X13: 30 | Y13: 6 | Z13: 46 | AA13: 30 | AB13: 16 | AC13: 53 | AD13: 26 | AE13: 27 | AF13: 3 | AG13: 2 | AH13: 1 | AI13: 10 | AJ13: 6 | AK13: 4 | AL13: 8 | AM13: 4 | AN13: 4 | AO13: 2 | AP13: 0 | AQ13: 2 | AR13: 6 | AS13: 3 | AT13: 3 | AU13: 5 | AV13: 4 | AW13: 1
A14: 응암3동 | B14: 1313 | C14: 732 | D14: 581 | E14: 506 | F14: 271 | G14: 235 | H14: 148 | I14: 83 | J14: 65 | K14: 250 | L14: 125 | M14: 125 | N14: 7 | O14: 5 | P14: 2 | Q14: 89 | R14: 59 | S14: 30 | T14: 137 | U14: 84 | V14: 53 | W14: 21 | X14: 16 | Y14: 5 | Z14: 51 | AA14: 27 | AB14: 24 | AC14: 59 | AD14: 39 | AE14: 20 | AF14: 3 | AG14: 1 | AH14: 2 | AI14: 8 | AJ14: 6 | AK14: 2 | AL14: 12 | AM14: 3 | AN14: 9 | AO14: 0 | AP14: 0 | AQ14: 0 | AR14: 15 | AS14: 11 | AT14: 4 | AU14: 7 | AV14: 2 | AW14: 5
A15: 역촌동 | B15: 2173 | C15: 1219 | D15: 954 | E15: 889 | F15: 470 | G15: 419 | H15: 206 | I15: 116 | J15: 90 | K15: 346 | L15: 199 | M15: 147 | N15: 18 | O15: 8 | P15: 10 | Q15: 204 | R15: 126 | S15: 78 | T15: 223 | U15: 133 | V15: 90 | W15: 43 | X15: 36 | Y15: 7 | Z15: 93 | AA15: 39 | AB15: 54 | AC15: 105 | AD15: 64 | AE15: 41 | AF15: 2 | AG15: 2 | AH15: 0 | AI15: 14 | AJ15: 7 | AK15: 7 | AL15: 12 | AM15: 8 | AN15: 4 | AO15: 2 | AP15: 1 | AQ15: 1 | AR15: 13 | AS15: 8 | AT15: 5 | AU15: 3 | AV15: 2 | AW15: 1
A16: 신사1동 | B16: 1242 | C16: 734 | D16: 508 | E16: 479 | F16: 278 | G16: 201 | H16: 152 | I16: 86 | J16: 66 | K16: 171 | L16: 108 | M16: 63 | N16: 15 | O16: 8 | P16: 7 | Q16: 146 | R16: 87 | S16: 59 | T16: 112 | U16: 62 | V16: 50 | W16: 31 | X16: 24 | Y16: 7 | Z16: 49 | AA16: 32 | AB16: 17 | AC16: 57 | AD16: 34 | AE16: 23 | AF16: 2 | AG16: 2 | AH16: 0 | AI16: 3 | AJ16: 1 | AK16: 2 | AL16: 7 | AM16: 4 | AN16: 3 | AO16: 2 | AP16: 1 | AQ16: 1 | AR16: 10 | AS16: 4 | AT16: 6 | AU16: 6 | AV16: 3 | AW16: 3
A17: 신사2동 | B17: 885 | C17: 508 | D17: 377 | E17: 379 | F17: 204 | G17: 175 | H17: 86 | I17: 59 | J17: 27 | K17: 138 | L17: 73 | M17: 65 | N17: 6 | O17: 6 | P17: 0 | Q17: 80 | R17: 46 | S17: 34 | T17: 72 | U17: 44 | V17: 28 | W17: 20 | X17: 16 | Y17: 4 | Z17: 27 | AA17: 15 | AB17: 12 | AC17: 50 | AD17: 28 | AE17: 22 | AF17: 3 | AG17: 1 | AH17: 2 | AI17: 7 | AJ17: 6 | AK17: 1 | AL17: 4 | AM17: 2 | AN17: 2 | AO17: 1 | AP17: 1 | AQ17: 0 | AR17: 9 | AS17: 4 | AT17: 5 | AU17: 3 | AV17: 3 | AW17: 0
A18: 증산동 | B18: 661 | C18: 387 | D18: 274 | E18: 282 | F18: 160 | G18: 122 | H18: 54 | I18: 30 | J18: 24 | K18: 117 | L18: 71 | M18: 46 | N18: 6 | O18: 3 | P18: 3 | Q18: 45 | R18: 29 | S18: 16 | T18: 54 | U18: 28 | V18: 26 | W18: 16 | X18: 16 | Y18: 0 | Z18: 33 | AA18: 15 | AB18: 18 | AC18: 32 | AD18: 20 | AE18: 12 | AF18: 1 | AG18: 1 | AH18: 0 | AI18: 3 | AJ18: 2 | AK18: 1 | AL18: 6 | AM18: 5 | AN18: 1 | AO18: 1 | AP18: 0 | AQ18: 1 | AR18: 8 | AS18: 7 | AT18: 1 | AU18: 3 | AV18: 0 | AW18: 3
A19: 수색동 | B19: 830 | C19: 445 | D19: 385 | E19: 318 | F19: 164 | G19: 154 | H19: 96 | I19: 52 | J19: 44 | K19: 127 | L19: 66 | M19: 61 | N19: 4 | O19: 4 | P19: 0 | Q19: 64 | R19: 43 | S19: 21 | T19: 101 | U19: 49 | V19: 52 | W19: 21 | X19: 17 | Y19: 4 | Z19: 32 | AA19: 13 | AB19: 19 | AC19: 36 | AD19: 20 | AE19: 16 | AF19: 1 | AG19: 0 | AH19: 1 | AI19: 3 | AJ19: 0 | AK19: 3 | AL19: 11 | AM19: 8 | AN19: 3 | AO19: 2 | AP19: 2 | AQ19: 0 | AR19: 9 | AS19: 4 | AT19: 5 | AU19: 5 | AV19: 3 | AW19: 2
A20: 진관동 | B20: 1922 | C20: 1121 | D20: 801 | E20: 765 | F20: 421 | G20: 344 | H20: 226 | I20: 129 | J20: 97 | K20: 287 | L20: 152 | M20: 135 | N20: 11 | O20: 10 | P20: 1 | Q20: 137 | R20: 88 | S20: 49 | T20: 205 | U20: 123 | V20: 82 | W20: 92 | X20: 76 | Y20: 16 | Z20: 53 | AA20: 26 | AB20: 27 | AC20: 87 | AD20: 58 | AE20: 29 | AF20: 7 | AG20: 5 | AH20: 2 | AI20: 6 | AJ20: 4 | AK20: 2 | AL20: 25 | AM20: 17 | AN20: 8 | AO20: 2 | AP20: 0 | AQ20: 2 | AR20: 19 | AS20: 12 | AT20: 7

Sheet 정도별
B2: 은평구 동별 장애인현황(정도별)
B3: *2025. 8월말 기준 | K3: (단위 : 명)
B4: 자치구 | C4: 동 | D4: 합계 | G4: 심한 장애 | J4: 심하지 않은 장애
D5: 계 | E5: 남자 | F5: 여자 | G5: 계 | H5: 남자 | I5: 여자 | J5: 계 | K5: 남자 | L5: 여자
B6: 은평구 | C6: 합 계 | D6: 21234 | E6: 12342 | F6: 8892 | G6: 8081 | H6: 5021 | I6: 3060 | J6: 13153 | K6: 7321 | L6: 5832
C7: 녹번동 | D7: 1626 | E7: 938 | F7: 688 | G7: 548 | H7: 319 | I7: 229 | J7: 1078 | K7: 619 | L7: 459
C8: 불광1동 | D8: 1608 | E8: 903 | F8: 705 | G8: 568 | H8: 320 | I8: 248 | J8: 1040 | K8: 583 | L8: 457
C9: 불광2동 | D9: 1434 | E9: 836 | F9: 598 | G9: 500 | H9: 296 | I9: 204 | J9: 934 | K9: 540 | L9: 394
C10: 갈현1동 | D10: 680 | E10: 386 | F10: 294 | G10: 245 | H10: 145 | I10: 100 | J10: 435 | K10: 241 | L10: 194
C11: 갈현2동 | D11: 1260 | E11: 733 | F11: 527 | G11: 472 | H11: 277 | I11: 195 | J11: 788 | K11: 456 | L11: 332
C12: 구산동 | D12: 2103 | E12: 1451 | F12: 652 | G12: 1150 | H12: 899 | I12: 251 | J12: 953 | K12: 552 | L12: 401
C13: 대조동 | D13: 1223 | E13: 704 | F13: 519 | G13: 446 | H13: 274 | I13: 172 | J13: 777 | K13: 430 | L13: 347
C14: 응암1동 | D14: 1313 | E14: 712 | F14: 601 | G14: 456 | H14: 257 | I14: 199 | J14: 857 | K14: 455 | L14: 402
C15: 응암2동 | D15: 961 | E15: 533 | F15: 428 | G15: 377 | H15: 228 | I15: 149 | J15: 584 | K15: 305 | L15: 279
C16: 응암3동 | D16: 1313 | E16: 732 | F16: 581 | G16: 403 | H16: 243 | I16: 160 | J16: 910 | K16: 489 | L16: 421
C17: 역촌동 | D17: 2173 | E17: 1219 | F17: 954 | G17: 802 | H17: 465 | I17: 337 | J17: 1371 | K17: 754 | L17: 617
C18: 신사1동 | D18: 1242 | E18: 734 | F18: 508 | G18: 488 | H18: 301 | I18: 187 | J18: 754 | K18: 433 | L18: 321
C19: 신사2동 | D19: 885 | E19: 508 | F19: 377 | G19: 303 | H19: 185 | I19: 118 | J19: 582 | K19: 323 | L19: 259
C20: 증산동 | D20: 661 | E20: 387 | F20: 274 | G20: 234 | H20: 143 | I20: 91 | J20: 427 | K20: 244 | L20: 183
C21: 수색동 | D21: 825 | E21: 442 | F21: 383 | G21: 325 | H21: 186 | I21: 139 | J21: 500 | K21: 256 | L21: 244
C22: 진관동 | D22: 1927 | E22: 1124 | F22: 803 | G22: 764 | H22: 483 | I22: 281 | J22: 1163 | K22: 641 | L22: 522

Sheet 연령별
A1: 은평구 장애인 연령구간별(5세 간격), 장애정도별 등록 현황
A2: =정도별!B3 -> *2025. 8월말 기준
J3: (단위: 명)
A4: 구분 | B4: 나이 | C4: 합계 | F4: 심한 장애 | I4: 심하지 않은 장애
C5: 합계 | D5: 남성 | E5: 여성 | F5: 소계 | G5: 남성 | H5: 여성 | I5: 소계 | J5: 남성 | K5: 여성
A6: 합계 | B6: 합계 | C6: 21234 | D6: 12342 | E6: 8892 | F6: 8081 | G6: 5021 | H6: 3060 | I6: 13153 | J6: 7321 | K6: 5832
B7: 0~4 | C7: 37 | D7: 18 | E7: 19 | F7: 28 | G7: 15 | H7: 13 | I7: 9 | J7: 3 | K7: 6
B8: 5~9 | C8: 270 | D8: 182 | E8: 88 | F8: 251 | G8: 173 | H8: 78 | I8: 19 | J8: 9 | K8: 10
B9: 10~14 | C9: 312 | D9: 210 | E9: 102 | F9: 289 | G9: 194 | H9: 95 | I9: 23 | J9: 16 | K9: 7
B10: 15~19 | C10: 278 | D10: 189 | E10: 89 | F10: 241 | G10: 168 | H10: 73 | I10: 37 | J10: 21 | K10: 16
B11: 20~24 | C11: 353 | D11: 218 | E11: 135 | F11: 294 | G11: 187 | H11: 107 | I11: 59 | J11: 31 | K11: 28
B12: 25~29 | C12: 486 | D12: 295 | E12: 191 | F12: 373 | G12: 237 | H12: 136 | I12: 113 | J12: 58 | K12: 55
B13: 30~34 | C13: 547 | D13: 358 | E13: 189 | F13: 412 | G13: 278 | H13: 134 | I13: 135 | J13: 80 | K13: 55
B14: 35~39 | C14: 511 | D14: 326 | E14: 185 | F14: 323 | G14: 212 | H14: 111 | I14: 188 | J14: 114 | K14: 74
B15: 40~44 | C15: 643 | D15: 431 | E15: 212 | F15: 352 | G15: 216 | H15: 136 | I15: 291 | J15: 215 | K15: 76
B16: 45~49 | C16: 813 | D16: 567 | E16: 246 | F16: 418 | G16: 281 | H16: 137 | I16: 395 | J16: 286 | K16: 109
B17: 50~54 | C17: 1292 | D17: 868 | E17: 424 | F17: 629 | G17: 391 | H17: 238 | I17: 663 | J17: 477 | K17: 186
B18: 55~59 | C18: 1641 | D18: 1103 | E18: 538 | F18: 721 | G18: 463 | H18: 258 | I18: 920 | J18: 640 | K18: 280
B19: 60~64 | C19: 1982 | D19: 1337 | E19: 645 | F19: 713 | G19: 473 | H19: 240 | I19: 1269 | J19: 864 | K19: 405
B20: 65~69 | C20: 2496 | D20: 1558 | E20: 938 | F20: 816 | G20: 523 | H20: 293 | I20: 1680 | J20: 1035 | K20: 645
B21: 70~74 | C21: 2411 | D21: 1358 | E21: 1053 | F21: 691 | G21: 449 | H21: 242 | I21: 1720 | J21: 909 | K21: 811
B22: 75~79 | C22: 2567 | D22: 1336 | E22: 1231 | F22: 605 | G22: 352 | H22: 253 | I22: 1962 | J22: 984 | K22: 978
B23: 80~84 | C23: 2393 | D23: 1125 | E23: 1268 | F23: 484 | G23: 241 | H23: 243 | I23: 1909 | J23: 884 | K23: 1025
B24: 85~89 | C24: 1546 | D24: 641 | E24: 905 | F24: 308 | G24: 123 | H24: 185 | I24: 1238 | J24: 518 | K24: 720
B25: 90~94 | C25: 538 | D25: 184 | E25: 354 | F25: 109 | G25: 39 | H25: 70 | I25: 429 | J25: 145 | K25: 284
B26: 95~99 | C26: 102 | D26: 33 | E26: 69 | F26: 21 | G26: 6 | H26: 15 | I26: 81 | J26: 27 | K26: 54
B27: 100~104 | C27: 15 | D27: 5 | E27: 10 | F27: 2 | G27: 0 | H27: 2 | I27: 13 | J27: 5 | K27: 8
B28: 105~109 | C28: 1 | D28: 0 | E28: 1 | F28: 1 | G28: 0 | H28: 1 | I28: 0 | J28: 0 | K28: 0

Sheet 연령별,유형별
A1: 은평구 등록장애인 연령별, 유형별 현황
B2: =정도별!B3 -> *2025. 8월말 기준
A3: 구분 | B3: 나이 | C3: 합계 | F3: 지체 | I3: 시각 | L3: 청각 | O3: 언어 | R3: 지적 | U3: 뇌병변 | X3: 자폐 | AA3: 정신 | AD3: 신장 | AG3: 심장 | AJ3: 호흡기 | AM3: 간 | AP3: 안면 | AS3: 장루.요루 | AV3: 뇌전증
C4: 합계 | D4: 남성 | E4: 여성 | F4: 소계 | G4: 남성 | H4: 여성 | I4: 소계 | J4: 남성 | K4: 여성 | L4: 소계 | M4: 남성 | N4: 여성 | O4: 소계 | P4: 남성 | Q4: 여성 | R4: 소계 | S4: 남성 | T4: 여성 | U4: 소계 | V4: 남성 | W4: 여성 | X4: 소계 | Y4: 남성 | Z4: 여성 | AA4: 소계 | AB4: 남성 | AC4: 여성 | AD4: 소계 | AE4: 남성 | AF4: 여성 | AG4: 소계 | AH4: 남성 | AI4: 여성 | AJ4: 소계 | AK4: 남성 | AL4: 여성 | AM4: 소계 | AN4: 남성 | AO4: 여성 | AP4: 소계 | AQ4: 남성 | AR4: 여성 | AS4: 소계 | AT4: 남성 | AU4: 여성 | AV4: 소계 | AW4: 남성 | AX4: 여성
A5: 합계 | C5: 21234 | D5: 12342 | E5: 8892 | F5: 8249 | G5: 4492 | H5: 3757 | I5: 2263 | J5: 1329 | K5: 934 | L5: 3355 | M5: 1855 | N5: 1500 | O5: 165 | P5: 119 | Q5: 46 | R5: 1894 | S5: 1243 | T5: 651 | U5: 2069 | V5: 1227 | W5: 842 | X5: 518 | Y5: 428 | Z5: 90 | AA5: 1120 | AB5: 677 | AC5: 443 | AD5: 998 | AE5: 596 | AF5: 402 | AG5: 44 | AH5: 26 | AI5: 18 | AJ5: 109 | AK5: 76 | AL5: 33 | AM5: 169 | AN5: 108 | AO5: 61 | AP5: 24 | AQ5: 14 | AR5: 10 | AS5: 194 | AT5: 120 | AU5: 74 | AV5: 63 | AW5: 32 | AX5: 31
A6: 합계 | B6: 1 | C6: 5 | D6: 2 | E6: 3 | F6: 0 | G6: 0 | H6: 0 | I6: 0 | J6: 0 | K6: 0 | L6: 2 | M6: 1 | N6: 1 | O6: 0 | P6: 0 | Q6: 0 | R6: 0 | S6: 0 | T6: 0 | U6: 2 | V6: 1 | W6: 1 | X6: 0 | Y6: 0 | Z6: 0 | AA6: 0 | AB6: 0 | AC6: 0 | AD6: 0 | AE6: 0 | AF6: 0 | AG6: 0 | AH6: 0 | AI6: 0 | AJ6: 0 | AK6: 0 | AL6: 0 | AM6: 1 | AN6: 0 | AO6: 1 | AP6: 0 | AQ6: 0 | AR6: 0 | AS6: 0 | AT6: 0 | AU6: 0 | AV6: 0 | AW6: 0 | AX6: 0
B7: 2 | C7: 7 | D7: 3 | E7: 4 | F7: 0 | G7: 0 | H7: 0 | I7: 0 | J7: 0 | K7: 0 | L7: 1 | M7: 0 | N7: 1 | O7: 0 | P7: 0 | Q7: 0 | R7: 0 | S7: 0 | T7: 0 | U7: 6 | V7: 3 | W7: 3 | X7: 0 | Y7: 0 | Z7: 0 | AA7: 0 | AB7: 0 | AC7: 0 | AD7: 0 | AE7: 0 | AF7: 0 | AG7: 0 | AH7: 0 | AI7: 0 | AJ7: 0 | AK7: 0 | AL7: 0 | AM7: 0 | AN7: 0 | AO7: 0 | AP7: 0 | AQ7: 0 | AR7: 0 | AS7: 0 | AT7: 0 | AU7: 0 | AV7: 0 | AW7: 0 | AX7: 0
B8: 3 | C8: 13 | D8: 6 | E8: 7 | F8: 0 | G8: 0 | H8: 0 | I8: 0 | J8: 0 | K8: 0 | L8: 2 | M8: 1 | N8: 1 | O8: 0 | P8: 0 | Q8: 0 | R8: 1 | S8: 0 | T8: 1 | U8: 8 | V8: 3 | W8: 5 | X8: 1 | Y8: 1 | Z8: 0 | AA8: 0 | AB8: 0 | AC8: 0 | AD8: 1 | AE8: 1 | AF8: 0 | AG8: 0 | AH8: 0 | AI8: 0 | AJ8: 0 | AK8: 0 | AL8: 0 | AM8: 0 | AN8: 0 | AO8: 0 | AP8: 0 | AQ8: 0 | AR8: 0 | AS8: 0 | AT8: 0 | AU8: 0 | AV8: 0 | AW8: 0 | AX8: 0
B9: 4 | C9: 12 | D9: 7 | E9: 5 | F9: 0 | G9: 0 | H9: 0 | I9: 0 | J9: 0 | K9: 0 | L9: 0 | M9: 0 | N9: 0 | O9: 2 | P9: 1 | Q9: 1 | R9: 3 | S9: 2 | T9: 1 | U9: 3 | V9: 2 | W9: 1 | X9: 4 | Y9: 2 | Z9: 2 | AA9: 0 | AB9: 0 | AC9: 0 | AD9: 0 | AE9: 0 | AF9: 0 | AG9: 0 | AH9: 0 | AI9: 0 | AJ9: 0 | AK9: 0 | AL9: 0 | AM9: 0 | AN9: 0 | AO9: 0 | AP9: 0 | AQ9: 0 | AR9: 0 | AS9: 0 | AT9: 0 | AU9: 0 | AV9: 0 | AW9: 0 | AX9: 0
B10: 5 | C10: 32 | D10: 17 | E10: 15 | F10: 1 | G10: 1 | H10: 0 | I10: 1 | J10: 1 | K10: 0 | L10: 3 | M10: 1 | N10: 2 | O10: 4 | P10: 2 | Q10: 2 | R10: 5 | S10: 3 | T10: 2 | U10: 4 | V10: 1 | W10: 3 | X10: 13 | Y10: 8 | Z10: 5 | AA10: 0 | AB10: 0 | AC10: 0 | AD10: 0 | AE10: 0 | AF10: 0 | AG10: 0 | AH10: 0 | AI10: 0 | AJ10: 0 | AK10: 0 | AL10: 0 | AM10: 0 | AN10: 0 | AO10: 0 | AP10: 0 | AQ10: 0 | AR10: 0 | AS10: 1 | AT10: 0 | AU10: 1 | AV10: 0 | AW10: 0 | AX10: 0
B11: 6 | C11: 49 | D11: 29 | E11: 20 | F11: 0 | G11: 0 | H11: 0 | I11: 1 | J11: 1 | K11: 0 | L11: 2 | M11: 1 | N11: 1 | O11: 2 | P11: 1 | Q11: 1 | R11: 8 | S11: 3 | T11: 5 | U11: 7 | V11: 2 | W11: 5 | X11: 29 | Y11: 21 | Z11: 8 | AA11: 0 | AB11: 0 | AC11: 0 | AD11: 0 | AE11: 0 | AF11: 0 | AG11: 0 | AH11: 0 | AI11: 0 | AJ11: 0 | AK11: 0 | AL11: 0 | AM11: 0 | AN11: 0 | AO11: 0 | AP11: 0 | AQ11: 0 | AR11: 0 | AS11: 0 | AT11: 0 | AU11: 0 | AV11: 0 | AW11: 0 | AX11: 0
B12: 7 | C12: 66 | D12: 45 | E12: 21 | F12: 1 | G12: 0 | H12: 1 | I12: 1 | J12: 1 | K12: 0 | L12: 0 | M12: 0 | N12: 0 | O12: 3 | P12: 2 | Q12: 1 | R12: 18 | S12: 12 | T12: 6 | U12: 9 | V12: 3 | W12: 6 | X12: 34 | Y12: 27 | Z12: 7 | AA12: 0 | AB12: 0 | AC12: 0 | AD12: 0 | AE12: 0 | AF12: 0 | AG12: 0 | AH12: 0 | AI12: 0 | AJ12: 0 | AK12: 0 | AL12: 0 | AM12: 0 | AN12: 0 | AO12: 0 | AP12: 0 | AQ12: 0 | AR12: 0 | AS12: 0 | AT12: 0 | AU12: 0 | AV12: 0 | AW12: 0 | AX12: 0
B13: 8 | C13: 55 | D13: 38 | E13: 17 | F13: 0 | G13: 0 | H13: 0 | I13: 0 | J13: 0 | K13: 0 | L13: 2 | M13: 0 | N13: 2 | O13: 2 | P13: 2 | Q13: 0 | R13: 15 | S13: 10 | T13: 5 | U13: 7 | V13: 3 | W13: 4 | X13: 28 | Y13: 22 | Z13: 6 | AA13: 0 | AB13: 0 | AC13: 0 | AD13: 0 | AE13: 0 | AF13: 0 | AG13: 0 | AH13: 0 | AI13: 0 | AJ13: 0 | AK13: 0 | AL13: 0 | AM13: 0 | AN13: 0 | AO13: 0 | AP13: 0 | AQ13: 0 | AR13: 0 | AS13: 1 | AT13: 1 | AU13: 0 | AV13: 0 | AW13: 0 | AX13: 0
B14: 9 | C14: 68 | D14: 53 | E14: 15 | F14: 0 | G14: 0 | H14: 0 | I14: 1 | J14: 0 | K14: 1 | L14: 3 | M14: 2 | N14: 1 | O14: 1 | P14: 1 | Q14: 0 | R14: 18 | S14: 15 | T14: 3 | U14: 4 | V14: 1 | W14: 3 | X14: 41 | Y14: 34 | Z14: 7 | AA14: 0 | AB14: 0 | AC14: 0 | AD14: 0 | AE14: 0 | AF14: 0 | AG14: 0 | AH14: 0 | AI14: 0 | AJ14: 0 | AK14: 0 | AL14: 0 | AM14: 0 | AN14: 0 | AO14: 0 | AP14: 0 | AQ14: 0 | AR14: 0 | AS14: 0 | AT14: 0 | AU14: 0 | AV14: 0 | AW14: 0 | AX14: 0
B15: 10 | C15: 57 | D15: 39 | E15: 18 | F15: 0 | G15: 0 | H15: 0 | I15: 1 | J15: 1 | K15: 0 | L15: 4 | M15: 0 | N15: 4 | O15: 0 | P15: 0 | Q15: 0 | R15: 26 | S15: 20 | T15: 6 | U15: 6 | V15: 3 | W15: 3 | X15: 20 | Y15: 15 | Z15: 5 | AA15: 0 | AB15: 0 | AC15: 0 | AD15: 0 | AE15: 0 | AF15: 0 | AG15: 0 | AH15: 0 | AI15: 0 | AJ15: 0 | AK15: 0 | AL15: 0 | AM15: 0 | AN15: 0 | AO15: 0 | AP15: 0 | AQ15: 0 | AR15: 0 | AS15: 0 | AT15: 0 | AU15: 0 | AV15: 0 | AW15: 0 | AX15: 0
B16: 11 | C16: 62 | D16: 40 | E16: 22 | F16: 0 | G16: 0 | H16: 0 | I16: 0 | J16: 0 | K16: 0 | L16: 2 | M16: 1 | N16: 1 | O16: 1 | P16: 1 | Q16: 0 | R16: 26 | S16: 12 | T16: 14 | U16: 10 | V16: 8 | W16: 2 | X16: 23 | Y16: 18 | Z16: 5 | AA16: 0 | AB16: 0 | AC16: 0 | AD16: 0 | AE16: 0 | AF16: 0 | AG16: 0 | AH16: 0 | AI16: 0 | AJ16: 0 | AK16: 0 | AL16: 0 | AM16: 0 | AN16: 0 | AO16: 0 | AP16: 0 | AQ16: 0 | AR16: 0 | AS16: 0 | AT16: 0 | AU16: 0 | AV16: 0 | AW16: 0 | AX16: 0
B17: 12 | C17: 59 | D17: 40 | E17: 19 | F17: 0 | G17: 0 | H17: 0 | I17: 1 | J17: 0 | K17: 1 | L17: 3 | M17: 0 | N17: 3 | O17: 0 | P17: 0 | Q17: 0 | R17: 23 | S17: 17 | T17: 6 | U17: 9 | V17: 4 | W17: 5 | X17: 21 | Y17: 17 | Z17: 4 | AA17: 0 | AB17: 0 | AC17: 0 | AD17: 0 | AE17: 0 | AF17: 0 | AG17: 1 | AH17: 1 | AI17: 0 | AJ17: 0 | AK17: 0 | AL17: 0 | AM17: 1 | AN17: 1 | AO17: 0 | AP17: 0 | AQ17: 0 | AR17: 0 | AS17: 0 | AT17: 0 | AU17: 0 | AV17: 0 | AW17: 0 | AX17: 0
B18: 13 | C18: 66 | D18: 39 | E18: 27 | F18: 2 | G18: 1 | H18: 1 | I18: 2 | J18: 2 | K18: 0 | L18: 1 | M18: 0 | N18: 1 | O18: 0 | P18: 0 | Q18: 0 | R18: 29 | S18: 14 | T18: 15 | U18: 11 | V18: 4 | W18: 7 | X18: 21 | Y18: 18 | Z18: 3 | AA18: 0 | AB18: 0 | AC18: 0 | AD18: 0 | AE18: 0 | AF18: 0 | AG18: 0 | AH18: 0 | AI18: 0 | AJ18: 0 | AK18: 0 | AL18: 0 | AM18: 0 | AN18: 0 | AO18: 0 | AP18: 0 | AQ18: 0 | AR18: 0 | AS18: 0 | AT18: 0 | AU18: 0 | AV18: 0 | AW18: 0 | AX18: 0
B19: 14 | C19: 68 | D19: 52 | E19: 16 | F19: 3 | G19: 2 | H19: 1 | I19: 3 | J19: 1 | K19: 2 | L19: 2 | M19: 1 | N19: 1 | O19: 1 | P19: 1 | Q19: 0 | R19: 29 | S19: 22 | T19: 7 | U19: 5 | V19: 4 | W19: 1 | X19: 25 | Y19: 21 | Z19: 4 | AA19: 0 | AB19: 0 | AC19: 0 | AD19: 0 | AE19: 0 | AF19: 0 | AG19: 0 | AH19: 0 | AI19: 0 | AJ19: 0 | AK19: 0 | AL19: 0 | AM19: 0 | AN19: 0 | AO19: 0 | AP19: 0 | AQ19: 0 | AR19: 0 | AS19: 0 | AT19: 0 | AU19: 0 | AV19: 0 | AW19: 0 | AX19: 0
B20: 15 | C20: 68 | D20: 48 | E20: 20 | F20: 1 | G20: 1 | H20: 0 | I20: 1 | J20: 0 | K20: 1 | L20: 0 | M20: 0 | N20: 0 | O20: 1 | P20: 1 | Q20: 0 | R20: 31 | S20: 19 | T20: 12 | U20: 7 | V20: 5 | W20: 2 | X20: 27 | Y20: 22 | Z20: 5 | AA20: 0 | AB20: 0 | AC20: 0 | AD20: 0 | AE20: 0 | AF20: 0 | AG20: 0 | AH20: 0 | AI20: 0 | AJ20: 0 | AK20: 0 | AL20: 0 | AM20: 0 | AN20: 0 | AO20: 0 | AP20: 0 | AQ20: 0 | AR20: 0 | AS20: 0 | AT20: 0 | AU20: 0 | AV20: 0 | AW20: 0 | AX20: 0
B21: 16 | C21: 52 | D21: 32 | E21: 20 | F21: 4 | G21: 3 | H21: 1 | I21: 2 | J21: 1 | K21: 1 | L21: 1 | M21: 1 | N21: 0 | O21: 0 | P21: 0 | Q21: 0 | R21: 24 | S21: 13 | T21: 11 | U21: 3 | V21: 2 | W21: 1 | X21: 15 | Y21: 10 | Z21: 5 | AA21: 0 | AB21: 0 | AC21: 0 | AD21: 0 | AE21: 0 | AF21: 0 | AG21: 1 | AH21: 1 | AI21: 0 | AJ21: 0 | AK21: 0 | AL21: 0 | AM21: 1 | AN21: 1 | AO21: 0 | AP21: 0 | AQ21: 0 | AR21: 0 | AS21: 1 | AT21: 0 | AU21: 1 | AV21: 0 | AW21: 0 | AX21: 0
B22: 17 | C22: 54 | D22: 41 | E22: 13 | F22: 1 | G22: 1 | H22: 0 | I22: 2 | J22: 0 | K22: 2 | L22: 1 | M22: 0 | N22: 1 | O22: 0 | P22: 0 | Q22: 0 | R22: 31 | S22: 26 | T22: 5 | U22: 8 | V22: 5 | W22: 3 | X22: 11 | Y22: 9 | Z22: 2 | AA22: 0 | AB22: 0 | AC22: 0 | AD22: 0 | AE22: 0 | AF22: 0 | AG22: 0 | AH22: 0 | AI22: 0 | AJ22: 0 | AK22: 0 | AL22: 0 | AM22: 0 | AN22: 0 | AO22: 0 | AP22: 0 | AQ22: 0 | AR22: 0 | AS22: 0 | AT22: 0 | AU22: 0 | AV22: 0 | AW22: 0 | AX22: 0
B23: 18 | C23: 53 | D23: 35 | E23: 18 | F23: 3 | G23: 0 | H23: 3 | I23: 1 | J23: 1 | K23: 0 | L23: 1 | M23: 1 | N23: 0 | O23: 0 | P23: 0 | Q23: 0 | R23: 35 | S23: 23 | T23: 12 | U23: 4 | V23: 2 | W23: 2 | X23: 8 | Y23: 7 | Z23: 1 | AA23: 0 | AB23: 0 | AC23: 0 | AD23: 0 | AE23: 0 | AF23: 0 | AG23: 0 | AH23: 0 | AI23: 0 | AJ23: 0 | AK23: 0 | AL23: 0 | AM23: 1 | AN23: 1 | AO23: 0 | AP23: 0 | AQ23: 0 | AR23: 0 | AS23: 0 | AT23: 0 | AU23: 0 | AV23: 0 | AW23: 0 | AX23: 0
B24: 19 | C24: 51 | D24: 33 | E24: 18 | F24: 4 | G24: 3 | H24: 1 | I24: 1 | J24: 1 | K24: 0 | L24: 1 | M24: 0 | N24: 1 | O24: 0 | P24: 0 | Q24: 0 | R24: 33 | S24: 22 | T24: 11 | U24: 4 | V24: 1 | W24: 3 | X24: 7 | Y24: 6 | Z24: 1 | AA24: 0 | AB24: 0 | AC24: 0 | AD24: 0 | AE24: 0 | AF24: 0 | AG24: 0 | AH24: 0 | AI24: 0 | AJ24: 0 | AK24: 0 | AL24: 0 | AM24: 1 | AN24: 0 | AO24: 1 | AP24: 0 | AQ24: 0 | AR24: 0 | AS24: 0 | AT24: 0 | AU24: 0 | AV24: 0 | AW24: 0 | AX24: 0
B25: 20 | C25: 54 | D25: 32 | E25: 22 | F25: 10 | G25: 3 | H25: 7 | I25: 3 | J25: 1 | K25: 2 | L25: 4 | M25: 2 | N25: 2 | O25: 0 | P25: 0 | Q25: 0 | R25: 27 | S25: 18 | T25: 9 | U25: 2 | V25: 1 | W25: 1 | X25: 7 | Y25: 6 | Z25: 1 | AA25: 0 | AB25: 0 | AC25: 0 | AD25: 1 | AE25: 1 | AF25: 0 | AG25: 0 | AH25: 0 | AI25: 0 | AJ25: 0 | AK25: 0 | AL25: 0 | AM25: 0 | AN25: 0 | AO25: 0 | AP25: 0 | AQ25: 0 | AR25: 0 | AS25: 0 | AT25: 0 | AU25: 0 | AV25: 0 | AW25: 0 | AX25: 0
B26: 21 | C26: 76 | D26: 48 | E26: 28 | F26: 4 | G26: 3 | H26: 1 | I26: 0 | J26: 0 | K26: 0 | L26: 4 | M26: 1 | N26: 3 | O26: 1 | P26: 1 | Q26: 0 | R26: 45 | S26: 25 | T26: 20 | U26: 8 | V26: 5 | W26: 3 | X26: 12 | Y26: 12 | Z26: 0 | AA26: 1 | AB26: 1 | AC26: 0 | AD26: 1 | AE26: 0 | AF26: 1 | AG26: 0 | AH26: 0 | AI26: 0 | AJ26: 0 | AK26: 0 | AL26: 0 | AM26: 0 | AN26: 0 | AO26: 0 | AP26: 0 | AQ26: 0 | AR26: 0 | AS26: 0 | AT26: 0 | AU26: 0 | AV26: 0 | AW26: 0 | AX26: 0
B27: 22 | C27: 69 | D27: 41 | E27: 28 | F27: 7 | G27: 5 | H27: 2 | I27: 1 | J27: 1 | K27: 0 | L27: 3 | M27: 0 | N27: 3 | O27: 1 | P27: 1 | Q27: 0 | R27: 40 | S27: 21 | T27: 19 | U27: 6 | V27: 3 | W27: 3 | X27: 6 | Y27: 6 | Z27: 0 | AA27: 0 | AB27: 0 | AC27: 0 | AD27: 1 | AE27: 1 | AF27: 0 | AG27: 2 | AH27: 2 | AI27: 0 | AJ27: 0 | AK27: 0 | AL27: 0 | AM27: 2 | AN27: 1 | AO27: 1 | AP27: 0 | AQ27: 0 | AR27: 0 | AS27: 0 | AT27: 0 | AU27: 0 | AV27: 0 | AW27: 0 | AX27: 0
B28: 23 | C28: 71 | D28: 44 | E28: 27 | F28: 5 | G28: 1 | H28: 4 | I28: 5 | J28: 4 | K28: 1 | L28: 5 | M28: 1 | N28: 4 | O28: 0 | P28: 0 | Q28: 0 | R28: 38 | S28: 28 | T28: 10 | U28: 6 | V28: 2 | W28: 4 | X28: 6 | Y28: 6 | Z28: 0 | AA28: 1 | AB28: 1 | AC28: 0 | AD28: 0 | AE28: 0 | AF28: 0 | AG28: 2 | AH28: 1 | AI28: 1 | AJ28: 0 | AK28: 0 | AL28: 0 | AM28: 3 | AN28: 0 | AO28: 3 | AP28: 0 | AQ28: 0 | AR28: 0 | AS28: 0 | AT28: 0 | AU28: 0 | AV28: 0 | AW28: 0 | AX28: 0
B29: 24 | C29: 83 | D29: 53 | E29: 30 | F29: 8 | G29: 5 | H29: 3 | I29: 6 | J29: 3 | K29: 3 | L29: 5 | M29: 4 | N29: 1 | O29: 0 | P29: 0 | Q29: 0 | R29: 42 | S29: 25 | T29: 17 | U29: 4 | V29: 4 | W29: 0 | X29: 12 | Y29: 10 | Z29: 2 | AA29: 4 | AB29: 2 | AC29: 2 | AD29: 1 | AE29: 0 | AF29: 1 | AG29: 0 | AH29: 0 | AI29: 0 | AJ29: 0 | AK29: 0 | AL29: 0 | AM29: 1 | AN29: 0 | AO29: 1 | AP29: 0 | AQ29: 0 | AR29: 0 | AS29: 0 | AT29: 0 | AU29: 0 | AV29: 0 | AW29: 0 | AX29: 0
B30: 25 | C30: 99 | D30: 61 | E30: 38 | F30: 12 | G30: 4 | H30: 8 | I30: 3 | J30: 2 | K30: 1 | L30: 8 | M30: 4 | N30: 4 | O30: 0 | P30: 0 | Q30: 0 | R30: 45 | S30: 32 | T30: 13 | U30: 5 | V30: 3 | W30: 2 | X30: 15 | Y30: 12 | Z30: 3 | AA30: 5 | AB30: 2 | AC30: 3 | AD30: 1 | AE30: 1 | AF30: 0 | AG30: 2 | AH30: 0 | AI30: 2 | AJ30: 1 | AK30: 1 | AL30: 0 | AM30: 1 | AN30: 0 | AO30: 1 | AP30: 0 | AQ30: 0 | AR30: 0 | AS30: 0 | AT30: 0 | AU30: 0 | AV30: 1 | AW30: 0 | AX30: 1
B31: 26 | C31: 88 | D31: 61 | E31: 27 | F31: 3 | G31: 0 | H31: 3 | I31: 5 | J31: 2 | K31: 3 | L31: 6 | M31: 4 | N31: 2 | O31: 0 | P31: 0 | Q31: 0 | R31: 42 | S31: 30 | T31: 12 | U31: 11 | V31: 7 | W31: 4 | X31: 16 | Y31: 15 | Z31: 1 | AA31: 1 | AB31: 1 | AC31: 0 | AD31: 0 | AE31: 0 | AF31: 0 | AG31: 1 | AH31: 1 | AI31: 0 | AJ31: 0 | AK31: 0 | AL31: 0 | AM31: 3 | AN31: 1 | AO31: 2 | AP31: 0 | AQ31: 0 | AR31: 0 | AS31: 0 | AT31: 0 | AU31: 0 | AV31: 0 | AW31: 0 | AX31: 0
B32: 27 | C32: 96 | D32: 53 | E32: 43 | F32: 12 | G32: 6 | H32: 6 | I32: 8 | J32: 5 | K32: 3 | L32: 4 | M32: 0 | N32: 4 | O32: 2 | P32: 2 | Q32: 0 | R32: 50 | S32: 29 | T32: 21 | U32: 6 | V32: 3 | W32: 3 | X32: 6 | Y32: 5 | Z32: 1 | AA32: 5 | AB32: 1 | AC32: 4 | AD32: 2 | AE32: 1 | AF32: 1 | AG32: 0 | AH32: 0 | AI32: 0 | AJ32: 0 | AK32: 0 | AL32: 0 | AM32: 0 | AN32: 0 | AO32: 0 | AP32: 0 | AQ32: 0 | AR32: 0 | AS32: 0 | AT32: 0 | AU32: 0 | AV32: 1 | AW32: 1 | AX32: 0
B33: 28 | C33: 97 | D33: 59 | E33: 38 | F33: 14 | G33: 6 | H33: 8 | I33: 14 | J33: 9 | K33: 5 | L33: 7 | M33: 5 | N33: 2 | O33: 2 | P33: 2 | Q33: 0 | R33: 37 | S33: 21 | T33: 16 | U33: 9 | V33: 4 | W33: 5 | X33: 8 | Y33: 8 | Z33: 0 | AA33: 6 | AB33: 4 | AC33: 2 | AD33: 0 | AE33: 0 | AF33: 0 | AG33: 0 | AH33: 0 | AI33: 0 | AJ33: 0 | AK33: 0 | AL33: 0 | AM33: 0 | AN33: 0 | AO33: 0 | AP33: 0 | AQ33: 0 | AR33: 0 | AS33: 0 | AT33: 0 | AU33: 0 | AV33: 0 | AW33: 0 | AX33: 0
B34: 29 | C34: 106 | D34: 61 | E34: 45 | F34: 12 | G34: 3 | H34: 9 | I34: 9 | J34: 6 | K34: 3 | L34: 5 | M34: 2 | N34: 3 | O34: 0 | P34: 0 | Q34: 0 | R34: 51 | S34: 30 | T34: 21 | U34: 6 | V34: 4 | W34: 2 | X34: 13 | Y34: 10 | Z34: 3 | AA34: 8 | AB34: 4 | AC34: 4 | AD34: 1 | AE34: 1 | AF34: 0 | AG34: 0 | AH34: 0 | AI34: 0 | AJ34: 0 | AK34: 0 | AL34: 0 | AM34: 1 | AN34: 1 | AO34: 0 | AP34: 0 | AQ34: 0 | AR34: 0 | AS34: 0 | AT34: 0 | AU34: 0 | AV34: 0 | AW34: 0 | AX34: 0
B35: 30 | C35: 103 | D35: 75 | E35: 28 | F35: 14 | G35: 9 | H35: 5 | I35: 9 | J35: 9 | K35: 0 | L35: 6 | M35: 4 | N35: 2 | O35: 0 | P35: 0 | Q35: 0 | R35: 46 | S35: 33 | T35: 13 | U35: 6 | V35: 4 | W35: 2 | X35: 9 | Y35: 8 | Z35: 1 | AA35: 6 | AB35: 5 | AC35: 1 | AD35: 4 | AE35: 1 | AF35: 3 | AG35: 1 | AH35: 1 | AI35: 0 | AJ35: 0 | AK35: 0 | AL35: 0 | AM35: 0 | AN35: 0 | AO35: 0 | AP35: 0 | AQ35: 0 | AR35: 0 | AS35: 1 | AT35: 1 | AU35: 0 | AV35: 1 | AW35: 0 | AX35: 1
B36: 31 | C36: 105 | D36: 63 | E36: 42 | F36: 9 | G36: 4 | H36: 5 | I36: 10 | J36: 7 | K36: 3 | L36: 5 | M36: 3 | N36: 2 | O36: 0 | P36: 0 | Q36: 0 | R36: 47 | S36: 27 | T36: 20 | U36: 12 | V36: 5 | W36: 7 | X36: 11 | Y36: 11 | Z36: 0 | AA36: 4 | AB36: 3 | AC36: 1 | AD36: 4 | AE36: 2 | AF36: 2 | AG36: 0 | AH36: 0 | AI36: 0 | AJ36: 0 | AK36: 0 | AL36: 0 | AM36: 0 | AN36: 0 | AO36: 0 | AP36: 0 | AQ36: 0 | AR36: 0 | AS36: 1 | AT36: 0 | AU36: 1 | AV36: 2 | AW36: 1 | AX36: 1
B37: 32 | C37: 100 | D37: 64 | E37: 36 | F37: 15 | G37: 10 | H37: 5 | I37: 11 | J37: 7 | K37: 4 | L37: 4 | M37: 1 | N37: 3 | O37: 1 | P37: 0 | Q37: 1 | R37: 52 | S37: 35 | T37: 17 | U37: 5 | V37: 4 | W37: 1 | X37: 5 | Y37: 4 | Z37: 1 | AA37: 4 | AB37: 1 | AC37: 3 | AD37: 2 | AE37: 1 | AF37: 1 | AG37: 0 | AH37: 0 | AI37: 0 | AJ37: 0 | AK37: 0 | AL37: 0 | AM37: 0 | AN37: 0 | AO37: 0 | AP37: 1 | AQ37: 1 | AR37: 0 | AS37: 0 | AT37: 0 | AU37: 0 | AV37: 0 | AW37: 0 | AX37: 0
B38: 33 | C38: 135 | D38: 85 | E38: 50 | F38: 20 | G38: 12 | H38: 8 | I38: 13 | J38: 9 | K38: 4 | L38: 7 | M38: 5 | N38: 2 | O38: 2 | P38: 1 | Q38: 1 | R38: 53 | S38: 34 | T38: 19 | U38: 13 | V38: 8 | W38: 5 | X38: 8 | Y38: 7 | Z38: 1 | AA38: 10 | AB38: 6 | AC38: 4 | AD38: 5 | AE38: 3 | AF38: 2 | AG38: 3 | AH38: 0 | AI38: 3 | AJ38: 0 | AK38: 0 | AL38: 0 | AM38: 0 | AN38: 0 | AO38: 0 | AP38: 0 | AQ38: 0 | AR38: 0 | AS38: 1 | AT38: 0 | AU38: 1 | AV38: 0 | AW38: 0 | AX38: 0
B39: 34 | C39: 104 | D39: 71 | E39: 33 | F39: 15 | G39: 12 | H39: 3 | I39: 10 | J39: 8 | K39: 2 | L39: 7 | M39: 4 | N39: 3 | O39: 0 | P39: 0 | Q39: 0 | R39: 37 | S39: 24 | T39: 13 | U39: 9 | V39: 5 | W39: 4 | X39: 11 | Y39: 10 | Z39: 1 | AA39: 10 | AB39: 6 | AC39: 4 | AD39: 4 | AE39: 2 | AF39: 2 | AG39: 1 | AH39: 0 | AI39: 1 | AJ39: 0 | AK39: 0 | AL39: 0 | AM39: 0 | AN39: 0 | AO39: 0 | AP39: 0 | AQ39: 0 | AR39: 0 | AS39: 0 | AT39: 0 | AU39: 0 | AV39: 0 | AW39: 0 | AX39: 0
B40: 35 | C40: 103 | D40: 68 | E40: 35 | F40: 16 | G40: 10 | H40: 6 | I40: 14 | J40: 10 | K40: 4 | L40: 6 | M40: 2 | N40: 4 | O40: 0 | P40: 0 | Q40: 0 | R40: 35 | S40: 25 | T40: 10 | U40: 5 | V40: 4 | W40: 1 | X40: 8 | Y40: 8 | Z40: 0 | AA40: 13 | AB40: 5 | AC40: 8 | AD40: 4 | AE40: 3 | AF40: 1 | AG40: 0 | AH40: 0 | AI40: 0 | AJ40: 0 | AK40: 0 | AL40: 0 | AM40: 1 | AN40: 0 | AO40: 1 | AP40: 0 | AQ40: 0 | AR40: 0 | AS40: 0 | AT40: 0 | AU40: 0 | AV40: 1 | AW40: 1 | AX40: 0
B41: 36 | C41: 93 | D41: 59 | E41: 34 | F41: 23 | G41: 17 | H41: 6 | I41: 8 | J41: 6 | K41: 2 | L41: 5 | M41: 1 | N41: 4 | O41: 0 | P41: 0 | Q41: 0 | R41: 30 | S41: 20 | T41: 10 | U41: 9 | V41: 4 | W41: 5 | X41: 7 | Y41: 5 | Z41: 2 | AA41: 9 | AB41: 4 | AC41: 5 | AD41: 1 | AE41: 1 | AF41: 0 | AG41: 0 | AH41: 0 | AI41: 0 | AJ41: 0 | AK41: 0 | AL41: 0 | AM41: 1 | AN41: 1 | AO41: 0 | AP41: 0 | AQ41: 0 | AR41: 0 | AS41: 0 | AT41: 0 | AU41: 0 | AV41: 0 | AW41: 0 | AX41: 0
B42: 37 | C42: 99 | D42: 69 | E42: 30 | F42: 23 | G42: 15 | H42: 8 | I42: 8 | J42: 5 | K42: 3 | L42: 3 | M42: 2 | N42: 1 | O42: 1 | P42: 0 | Q42: 1 | R42: 34 | S42: 26 | T42: 8 | U42: 12 | V42: 10 | W42: 2 | X42: 6 | Y42: 6 | Z42: 0 | AA42: 5 | AB42: 2 | AC42: 3 | AD42: 5 | AE42: 3 | AF42: 2 | AG42: 1 | AH42: 0 | AI42: 1 | AJ42: 0 | AK42: 0 | AL42: 0 | AM42: 0 | AN42: 0 | AO42: 0 | AP42: 0 | AQ42: 0 | AR42: 0 | AS42: 0 | AT42: 0 | AU42: 0 | AV42: 1 | AW42: 0 | AX42: 1
B43: 38 | C43: 110 | D43: 68 | E43: 42 | F43: 26 | G43: 15 | H43: 11 | I43: 11 | J43: 8 | K43: 3 | L43: 3 | M43: 2 | N43: 1 | O43: 0 | P43: 0 | Q43: 0 | R43: 32 | S43: 20 | T43: 12 | U43: 10 | V43: 7 | W43: 3 | X43: 6 | Y43: 6 | Z43: 0 | AA43: 12 | AB43: 7 | AC43: 5 | AD43: 5 | AE43: 1 | AF43: 4 | AG43: 1 | AH43: 0 | AI43: 1 | AJ43: 0 | AK43: 0 | AL43: 0 | AM43: 0 | AN43: 0 | AO43: 0 | AP43: 1 | AQ43: 1 | AR43: 0 | AS43: 2 | AT43: 1 | AU43: 1 | AV43: 1 | AW43: 0 | AX43: 1
B44: 39 | C44: 106 | D44: 62 | E44: 44 | F44: 27 | G44: 16 | H44: 11 | I44: 21 | J44: 12 | K44: 9 | L44: 4 | M44: 2 | N44: 2 | O44: 1 | P44: 1 | Q44: 0 | R44: 26 | S44: 15 | T44: 11 | U44: 4 | V44: 4 | W44: 0 | X44: 4 | Y44: 4 | Z44: 0 | AA44: 11 | AB44: 6 | AC44: 5 | AD44: 4 | AE44: 2 | AF44: 2 | AG44: 0 | AH44: 0 | AI44: 0 | AJ44: 1 | AK44: 0 | AL44: 1 | AM44: 1 | AN44: 0 | AO44: 1 | AP44: 0 | AQ44: 0 | AR44: 0 | AS44: 1 | AT44: 0 | AU44: 1 | AV44: 1 | AW44: 0 | AX44: 1
B45: 40 | C45: 102 | D45: 61 | E45: 41 | F45: 32 | G45: 19 | H45: 13 | I45: 12 | J45: 7 | K45: 5 | L45: 2 | M45: 2 | N45: 0 | O45: 0 | P45: 0 | Q45: 0 | R45: 21 | S45: 12 | T45: 9 | U45: 10 | V45: 5 | W45: 5 | X45: 4 | Y45: 3 | Z45: 1 | AA45: 12 | AB45: 9 | AC45: 3 | AD45: 6 | AE45: 2 | AF45: 4 | AG45: 0 | AH45: 0 | AI45: 0 | AJ45: 0 | AK45: 0 | AL45: 0 | AM45: 1 | AN45: 1 | AO45: 0 | AP45: 0 | AQ45: 0 | AR45: 0 | AS45: 0 | AT45: 0 | AU45: 0 | AV45: 2 | AW45: 1 | AX45: 1
A46: 합계 | B46: 41 | C46: 102 | D46: 63 | E46: 39 | F46: 29 | G46: 21 | H46: 8 | I46: 9 | J46: 5 | K46: 4 | L46: 3 | M46: 0 | N46: 3 | O46: 1 | P46: 0 | Q46: 1 | R46: 26 | S46: 18 | T46: 8 | U46: 15 | V46: 10 | W46: 5 | X46: 0 | Y46: 0 | Z46: 0 | AA46: 12 | AB46: 7 | AC46: 5 | AD46: 6 | AE46: 2 | AF46: 4 | AG46: 0 | AH46: 0 | AI46: 0 | AJ46: 0 | AK46: 0 | AL46: 0 | AM46: 0 | AN46: 0 | AO46: 0 | AP46: 0 | AQ46: 0 | AR46: 0 | AS46: 0 | AT46: 0 | AU46: 0 | AV46: 1 | AW46: 0 | AX46: 1
B47: 42 | C47: 122 | D47: 89 | E47: 33 | F47: 38 | G47: 31 | H47: 7 | I47: 18 | J47: 16 | K47: 2 | L47: 2 | M47: 2 | N47: 0 | O47: 0 | P47: 0 | Q47: 0 | R47: 26 | S47: 16 | T47: 10 | U47: 12 | V47: 8 | W47: 4 | X47: 1 | Y47: 0 | Z47: 1 | AA47: 13 | AB47: 9 | AC47: 4 | AD47: 5 | AE47: 1 | AF47: 4 | AG47: 2 | AH47: 2 | AI47: 0 | AJ47: 1 | AK47: 1 | AL47: 0 | AM47: 1 | AN47: 0 | AO47: 1 | AP47: 0 | AQ47: 0 | AR47: 0 | AS47: 1 | AT47: 1 | AU47: 0 | AV47: 2 | AW47: 2 | AX47: 0
B48: 43 | C48: 149 | D48: 99 | E48: 50 | F48: 49 | G48: 41 | H48: 8 | I48: 18 | J48: 13 | K48: 5 | L48: 8 | M48: 3 | N48: 5 | O48: 2 | P48: 1 | Q48: 1 | R48: 31 | S48: 16 | T48: 15 | U48: 10 | V48: 7 | W48: 3 | X48: 2 | Y48: 2 | Z48: 0 | AA48: 17 | AB48: 10 | AC48: 7 | AD48: 9 | AE48: 5 | AF48: 4 | AG48: 0 | AH48: 0 | AI48: 0 | AJ48: 0 | AK48: 0 | AL48: 0 | AM48: 0 | AN48: 0 | AO48: 0 | AP48: 0 | AQ48: 0 | AR48: 0 | AS48: 0 | AT48: 0 | AU48: 0 | AV48: 3 | AW48: 1 | AX48: 2
B49: 44 | C49: 168 | D49: 119 | E49: 49 | F49: 49 | G49: 38 | H49: 11 | I49: 26 | J49: 20 | K49: 6 | L49: 9 | M49: 6 | N49: 3 | O49: 1 | P49: 0 | Q49: 1 | R49: 43 | S49: 32 | T49: 11 | U49: 17 | V49: 12 | W49: 5 | X49: 2 | Y49: 1 | Z49: 1 | AA49: 14 | AB49: 5 | AC49: 9 | AD49: 7 | AE49: 5 | AF49: 2 | AG49: 0 | AH49: 0 | AI49: 0 | AJ49: 0 | AK49: 0 | AL49: 0 | AM49: 0 | AN49: 0 | AO49: 0 | AP49: 0 | AQ49: 0 | AR49: 0 | AS49: 0 | AT49: 0 | AU49: 0 | AV49: 0 | AW49: 0 | AX49: 0
B50: 45 | C50: 141 | D50: 90 | E50: 51 | F50: 48 | G50: 35 | H50: 13 | I50: 15 | J50: 10 | K50: 5 | L50: 12 | M50: 7 | N50: 5 | O50: 0 | P50: 0 | Q50: 0 | R50: 25 | S50: 15 | T50: 10 | U50: 11 | V50: 5 | W50: 6 | X50: 1 | Y50: 1 | Z50: 0 | AA50: 18 | AB50: 10 | AC50: 8 | AD50: 9 | AE50: 6 | AF50: 3 | AG50: 0 | AH50: 0 | AI50: 0 | AJ50: 0 | AK50: 0 | AL50: 0 | AM50: 1 | AN50: 1 | AO50: 0 | AP50: 0 | AQ50: 0 | AR50: 0 | AS50: 0 | AT50: 0 | AU50: 0 | AV50: 1 | AW50: 0 | AX50: 1
B51: 46 | C51: 162 | D51: 115 | E51: 47 | F51: 75 | G51: 61 | H51: 14 | I51: 15 | J51: 9 | K51: 6 | L51: 6 | M51: 2 | N51: 4 | O51: 0 | P51: 0 | Q51: 0 | R51: 21 | S51: 12 | T51: 9 | U51: 16 | V51: 14 | W51: 2 | X51: 0 | Y51: 0 | Z51: 0 | AA51: 14 | AB51: 7 | AC51: 7 | AD51: 10 | AE51: 7 | AF51: 3 | AG51: 2 | AH51: 2 | AI51: 0 | AJ51: 0 | AK51: 0 | AL51: 0 | AM51: 2 | AN51: 1 | AO51: 1 | AP51: 0 | AQ51: 0 | AR51: 0 | AS51: 1 | AT51: 0 | AU51: 1 | AV51: 0 | AW51: 0 | AX51: 0
B52: 47 | C52: 155 | D52: 110 | E52: 45 | F52: 60 | G52: 45 | H52: 15 | I52: 17 | J52: 13 | K52: 4 | L52: 8 | M52: 4 | N52: 4 | O52: 2 | P52: 2 | Q52: 0 | R52: 27 | S52: 18 | T52: 9 | U52: 12 | V52: 7 | W52: 5 | X52: 0 | Y52: 0 | Z52: 0 | AA52: 20 | AB52: 15 | AC52: 5 | AD52: 6 | AE52: 4 | AF52: 2 | AG52: 0 | AH52: 0 | AI52: 0 | AJ52: 0 | AK52: 0 | AL52: 0 | AM52: 1 | AN52: 1 | AO52: 0 | AP52: 1 | AQ52: 0 | AR52: 1 | AS52: 0 | AT52: 0 | AU52: 0 | AV52: 1 | AW52: 1 | AX52: 0
B53: 48 | C53: 167 | D53: 115 | E53: 52 | F53: 48 | G53: 37 | H53: 11 | I53: 20 | J53: 10 | K53: 10 | L53: 5 | M53: 1 | N53: 4 | O53: 1 | P53: 1 | Q53: 0 | R53: 36 | S53: 21 | T53: 15 | U53: 17 | V53: 13 | W53: 4 | X53: 0 | Y53: 0 | Z53: 0 | AA53: 28 | AB53: 21 | AC53: 7 | AD53: 7 | AE53: 6 | AF53: 1 | AG53: 0 | AH53: 0 | AI53: 0 | AJ53: 1 | AK53: 1 | AL53: 0 | AM53: 2 | AN53: 2 | AO53: 0 | AP53: 1 | AQ53: 1 | AR53: 0 | AS53: 0 | AT53: 0 | AU53: 0 | AV53: 1 | AW53: 1 | AX53: 0
B54: 49 | C54: 188 | D54: 137 | E54: 51 | F54: 75 | G54: 61 | H54: 14 | I54: 21 | J54: 10 | K54: 11 | L54: 11 | M54: 4 | N54: 7 | O54: 0 | P54: 0 | Q54: 0 | R54: 38 | S54: 32 | T54: 6 | U54: 14 | V54: 9 | W54: 5 | X54: 2 | Y54: 2 | Z54: 0 | AA54: 15 | AB54: 11 | AC54: 4 | AD54: 7 | AE54: 5 | AF54: 2 | AG54: 0 | AH54: 0 | AI54: 0 | AJ54: 1 | AK54: 1 | AL54: 0 | AM54: 1 | AN54: 0 | AO54: 1 | AP54: 1 | AQ54: 1 | AR54: 0 | AS54: 1 | AT54: 1 | AU54: 0 | AV54: 1 | AW54: 0 | AX54: 1
B55: 50 | C55: 215 | D55: 142 | E55: 73 | F55: 69 | G55: 57 | H55: 12 | I55: 28 | J55: 21 | K55: 7 | L55: 11 | M55: 3 | N55: 8 | O55: 5 | P55: 2 | Q55: 3 | R55: 27 | S55: 13 | T55: 14 | U55: 26 | V55: 15 | W55: 11 | X55: 1 | Y55: 1 | Z55: 0 | AA55: 34 | AB55: 20 | AC55: 14 | AD55: 11 | AE55: 9 | AF55: 2 | AG55: 0 | AH55: 0 | AI55: 0 | AJ55: 0 | AK55: 0 | AL55: 0 | AM55: 1 | AN55: 1 | AO55: 0 | AP55: 0 | AQ55: 0 | AR55: 0 | AS55: 1 | AT55: 0 | AU55: 1 | AV55: 1 | AW55: 0 | AX55: 1
B56: 51 | C56: 234 | D56: 152 | E56: 82 | F56: 78 | G56: 56 | H56: 22 | I56: 30 | J56: 19 | K56: 11 | L56: 10 | M56: 3 | N56: 7 | O56: 4 | P56: 3 | Q56: 1 | R56: 29 | S56: 21 | T56: 8 | U56: 27 | V56: 16 | W56: 11 | X56: 0 | Y56: 0 | Z56: 0 | AA56: 32 | AB56: 21 | AC56: 11 | AD56: 14 | AE56: 8 | AF56: 6 | AG56: 0 | AH56: 0 | AI56: 0 | AJ56: 1 | AK56: 1 | AL56: 0 | AM56: 2 | AN56: 2 | AO56: 0 | AP56: 2 | AQ56: 0 | AR56: 2 | AS56: 1 | AT56: 1 | AU56: 0 | AV56: 4 | AW56: 1 | AX56: 3
B57: 52 | C57: 260 | D57: 187 | E57: 73 | F57: 90 | G57: 72 | H57: 18 | I57: 40 | J57: 29 | K57: 11 | L57: 11 | M57: 6 | N57: 5 | O57: 5 | P57: 3 | Q57: 2 | R57: 27 | S57: 20 | T57: 7 | U57: 25 | V57: 18 | W57: 7 | X57: 0 | Y57: 0 | Z57: 0 | AA57: 42 | AB57: 24 | AC57: 18 | AD57: 12 | AE57: 11 | AF57: 1 | AG57: 2 | AH57: 1 | AI57: 1 | AJ57: 0 | AK57: 0 | AL57: 0 | AM57: 2 | AN57: 1 | AO57: 1 | AP57: 0 | AQ57: 0 | AR57: 0 | AS57: 0 | AT57: 0 | AU57: 0 | AV57: 4 | AW57: 2 | AX57: 2
B58: 53 | C58: 278 | D58: 190 | E58: 88 | F58: 100 | G58: 78 | H58: 22 | I58: 25 | J58: 18 | K58: 7 | L58: 16 | M58: 9 | N58: 7 | O58: 1 | P58: 1 | Q58: 0 | R58: 34 | S58: 22 | T58: 12 | U58: 31 | V58: 23 | W58: 8 | X58: 1 | Y58: 1 | Z58: 0 | AA58: 34 | AB58: 17 | AC58: 17 | AD58: 21 | AE58: 11 | AF58: 10 | AG58: 0 | AH58: 0 | AI58: 0 | AJ58: 2 | AK58: 1 | AL58: 1 | AM58: 4 | AN58: 2 | AO58: 2 | AP58: 2 | AQ58: 1 | AR58: 1 | AS58: 3 | AT58: 3 | AU58: 0 | AV58: 4 | AW58: 3 | AX58: 1
B59: 54 | C59: 305 | D59: 197 | E59: 108 | F59: 114 | G59: 80 | H59: 34 | I59: 34 | J59: 20 | K59: 14 | L59: 11 | M59: 5 | N59: 6 | O59: 3 | P59: 3 | Q59: 0 | R59: 35 | S59: 25 | T59: 10 | U59: 21 | V59: 15 | W59: 6 | X59: 0 | Y59: 0 | Z59: 0 | AA59: 51 | AB59: 26 | AC59: 25 | AD59: 24 | AE59: 17 | AF59: 7 | AG59: 2 | AH59: 1 | AI59: 1 | AJ59: 1 | AK59: 0 | AL59: 1 | AM59: 7 | AN59: 5 | AO59: 2 | AP59: 1 | AQ59: 0 | AR59: 1 | AS59: 1 | AT59: 0 | AU59: 1 | AV59: 0 | AW59: 0 | AX59: 0
B60: 55 | C60: 282 | D60: 185 | E60: 97 | F60: 112 | G60: 80 | H60: 32 | I60: 29 | J60: 21 | K60: 8 | L60: 12 | M60: 6 | N60: 6 | O60: 1 | P60: 1 | Q60: 0 | R60: 28 | S60: 19 | T60: 9 | U60: 32 | V60: 21 | W60: 11 | X60: 0 | Y60: 0 | Z60: 0 | AA60: 35 | AB60: 21 | AC60: 14 | AD60: 23 | AE60: 12 | AF60: 11 | AG60: 0 | AH60: 0 | AI60: 0 | AJ60: 0 | AK60: 0 | AL60: 0 | AM60: 3 | AN60: 3 | AO60: 0 | AP60: 0 | AQ60: 0 | AR60: 0 | AS60: 3 | AT60: 1 | AU60: 2 | AV60: 4 | AW60: 0 | AX60: 4
B61: 56 | C61: 336 | D61: 231 | E61: 105 | F61: 142 | G61: 105 | H61: 37 | I61: 49 | J61: 30 | K61: 19 | L61: 14 | M61: 10 | N61: 4 | O61: 2 | P61: 1 | Q61: 1 | R61: 21 | S61: 16 | T61: 5 | U61: 31 | V61: 22 | W61: 9 | X61: 0 | Y61: 0 | Z61: 0 | AA61: 40 | AB61: 25 | AC61: 15 | AD61: 23 | AE61: 14 | AF61: 9 | AG61: 1 | AH61: 1 | AI61: 0 | AJ61: 2 | AK61: 1 | AL61: 1 | AM61: 7 | AN61: 4 | AO61: 3 | AP61: 0 | AQ61: 0 | AR61: 0 | AS61: 2 | AT61: 1 | AU61: 1 | AV61: 2 | AW61: 1 | AX61: 1
B62: 57 | C62: 333 | D62: 225 | E62: 108 | F62: 142 | G62: 106 | H62: 36 | I62: 35 | J62: 21 | K62: 14 | L62: 20 | M62: 11 | N62: 9 | O62: 4 | P62: 2 | Q62: 2 | R62: 18 | S62: 11 | T62: 7 | U62: 30 | V62: 18 | W62: 12 | X62: 0 | Y62: 0 | Z62: 0 | AA62: 51 | AB62: 34 | AC62: 17 | AD62: 24 | AE62: 16 | AF62: 8 | AG62: 1 | AH62: 0 | AI62: 1 | AJ62: 0 | AK62: 0 | AL62: 0 | AM62: 4 | AN62: 4 | AO62: 0 | AP62: 0 | AQ62: 0 | AR62: 0 | AS62: 3 | AT62: 2 | AU62: 1 | AV62: 1 | AW62: 0 | AX62: 1
B63: 58 | C63: 360 | D63: 254 | E63: 106 | F63: 163 | G63: 116 | H63: 47 | I63: 40 | J63: 26 | K63: 14 | L63: 23 | M63: 14 | N63: 9 | O63: 5 | P63: 3 | Q63: 2 | R63: 16 | S63: 13 | T63: 3 | U63: 29 | V63: 23 | W63: 6 | X63: 0 | Y63: 0 | Z63: 0 | AA63: 50 | AB63: 32 | AC63: 18 | AD63: 25 | AE63: 20 | AF63: 5 | AG63: 0 | AH63: 0 | AI63: 0 | AJ63: 1 | AK63: 0 | AL63: 1 | AM63: 4 | AN63: 4 | AO63: 0 | AP63: 1 | AQ63: 1 | AR63: 0 | AS63: 1 | AT63: 0 | AU63: 1 | AV63: 2 | AW63: 2 | AX63: 0
B64: 59 | C64: 330 | D64: 208 | E64: 122 | F64: 133 | G64: 90 | H64: 43 | I64: 42 | J64: 25 | K64: 17 | L64: 24 | M64: 12 | N64: 12 | O64: 3 | P64: 3 | Q64: 0 | R64: 21 | S64: 15 | T64: 6 | U64: 32 | V64: 22 | W64: 10 | X64: 0 | Y64: 0 | Z64: 0 | AA64: 31 | AB64: 15 | AC64: 16 | AD64: 29 | AE64: 14 | AF64: 15 | AG64: 2 | AH64: 2 | AI64: 0 | AJ64: 2 | AK64: 2 | AL64: 0 | AM64: 6 | AN64: 4 | AO64: 2 | AP64: 0 | AQ64: 0 | AR64: 0 | AS64: 4 | AT64: 3 | AU64: 1 | AV64: 1 | AW64: 1 | AX64: 0
B65: 60 | C65: 332 | D65: 215 | E65: 117 | F65: 149 | G65: 103 | H65: 46 | I65: 39 | J65: 21 | K65: 18 | L65: 36 | M65: 21 | N65: 15 | O65: 3 | P65: 2 | Q65: 1 | R65: 12 | S65: 6 | T65: 6 | U65: 33 | V65: 21 | W65: 12 | X65: 0 | Y65: 0 | Z65: 0 | AA65: 31 | AB65: 18 | AC65: 13 | AD65: 19 | AE65: 14 | AF65: 5 | AG65: 0 | AH65: 0 | AI65: 0 | AJ65: 1 | AK65: 1 | AL65: 0 | AM65: 7 | AN65: 6 | AO65: 1 | AP65: 0 | AQ65: 0 | AR65: 0 | AS65: 2 | AT65: 2 | AU65: 0 | AV65: 0 | AW65: 0 | AX65: 0
B66: 61 | C66: 361 | D66: 255 | E66: 106 | F66: 170 | G66: 121 | H66: 49 | I66: 45 | J66: 33 | K66: 12 | L66: 27 | M66: 18 | N66: 9 | O66: 3 | P66: 2 | Q66: 1 | R66: 14 | S66: 10 | T66: 4 | U66: 36 | V66: 29 | W66: 7 | X66: 0 | Y66: 0 | Z66: 0 | AA66: 26 | AB66: 16 | AC66: 10 | AD66: 29 | AE66: 18 | AF66: 11 | AG66: 2 | AH66: 1 | AI66: 1 | AJ66: 1 | AK66: 0 | AL66: 1 | AM66: 5 | AN66: 4 | AO66: 1 | AP66: 0 | AQ66: 0 | AR66: 0 | AS66: 3 | AT66: 3 | AU66: 0 | AV66: 0 | AW66: 0 | AX66: 0
B67: 62 | C67: 407 | D67: 271 | E67: 136 | F67: 205 | G67: 144 | H67: 61 | I67: 48 | J67: 31 | K67: 17 | L67: 28 | M67: 19 | N67: 9 | O67: 2 | P67: 2 | Q67: 0 | R67: 17 | S67: 14 | T67: 3 | U67: 38 | V67: 23 | W67: 15 | X67: 0 | Y67: 0 | Z67: 0 | AA67: 29 | AB67: 16 | AC67: 13 | AD67: 27 | AE67: 15 | AF67: 12 | AG67: 1 | AH67: 0 | AI67: 1 | AJ67: 1 | AK67: 1 | AL67: 0 | AM67: 7 | AN67: 4 | AO67: 3 | AP67: 1 | AQ67: 0 | AR67: 1 | AS67: 3 | AT67: 2 | AU67: 1 | AV67: 0 | AW67: 0 | AX67: 0
B68: 63 | C68: 378 | D68: 276 | E68: 102 | F68: 170 | G68: 121 | H68: 49 | I68: 50 | J68: 37 | K68: 13 | L68: 36 | M68: 26 | N68: 10 | O68: 4 | P68: 4 | Q68: 0 | R68: 13 | S68: 12 | T68: 1 | U68: 34 | V68: 27 | W68: 7 | X68: 0 | Y68: 0 | Z68: 0 | AA68: 34 | AB68: 23 | AC68: 11 | AD68: 21 | AE68: 14 | AF68: 7 | AG68: 1 | AH68: 1 | AI68: 0 | AJ68: 3 | AK68: 1 | AL68: 2 | AM68: 4 | AN68: 3 | AO68: 1 | AP68: 0 | AQ68: 0 | AR68: 0 | AS68: 3 | AT68: 3 | AU68: 0 | AV68: 5 | AW68: 4 | AX68: 1
B69: 64 | C69: 504 | D69: 320 | E69: 184 | F69: 243 | G69: 162 | H69: 81 | I69: 62 | J69: 36 | K69: 26 | L69: 46 | M69: 26 | N69: 20 | O69: 2 | P69: 2 | Q69: 0 | R69: 20 | S69: 13 | T69: 7 | U69: 56 | V69: 33 | W69: 23 | X69: 0 | Y69: 0 | Z69: 0 | AA69: 32 | AB69: 23 | AC69: 9 | AD69: 23 | AE69: 15 | AF69: 8 | AG69: 2 | AH69: 2 | AI69: 0 | AJ69: 1 | AK69: 0 | AL69: 1 | AM69: 8 | AN69: 4 | AO69: 4 | AP69: 1 | AQ69: 0 | AR69: 1 | AS69: 6 | AT69: 2 | AU69: 4 | AV69: 2 | AW69: 2 | AX69: 0
B70: 65 | C70: 544 | D70: 355 | E70: 189 | F70: 248 | G70: 160 | H70: 88 | I70: 56 | J70: 39 | K70: 17 | L70: 60 | M70: 33 | N70: 27 | O70: 9 | P70: 7 | Q70: 2 | R70: 15 | S70: 12 | T70: 3 | U70: 46 | V70: 34 | W70: 12 | X70: 0 | Y70: 0 | Z70: 0 | AA70: 41 | AB70: 27 | AC70: 14 | AD70: 40 | AE70: 25 | AF70: 15 | AG70: 2 | AH70: 2 | AI70: 0 | AJ70: 6 | AK70: 3 | AL70: 3 | AM70: 11 | AN70: 7 | AO70: 4 | AP70: 0 | AQ70: 0 | AR70: 0 | AS70: 8 | AT70: 4 | AU70: 4 | AV70: 2 | AW70: 2 | AX70: 0
B71: 66 | C71: 514 | D71: 339 | E71: 175 | F71: 234 | G71: 166 | H71: 68 | I71: 52 | J71: 37 | K71: 15 | L71: 56 | M71: 29 | N71: 27 | O71: 5 | P71: 3 | Q71: 2 | R71: 17 | S71: 10 | T71: 7 | U71: 59 | V71: 40 | W71: 19 | X71: 0 | Y71: 0 | Z71: 0 | AA71: 43 | AB71: 25 | AC71: 18 | AD71: 31 | AE71: 18 | AF71: 13 | AG71: 0 | AH71: 0 | AI71: 0 | AJ71: 5 | AK71: 3 | AL71: 2 | AM71: 6 | AN71: 4 | AO71: 2 | AP71: 1 | AQ71: 1 | AR71: 0 | AS71: 5 | AT71: 3 | AU71: 2 | AV71: 0 | AW71: 0 | AX71: 0
B72: 67 | C72: 481 | D72: 294 | E72: 187 | F72: 243 | G72: 147 | H72: 96 | I72: 50 | J72: 30 | K72: 20 | L72: 55 | M72: 34 | N72: 21 | O72: 6 | P72: 3 | Q72: 3 | R72: 4 | S72: 3 | T72: 1 | U72: 67 | V72: 44 | W72: 23 | X72: 0 | Y72: 0 | Z72: 0 | AA72: 20 | AB72: 14 | AC72: 6 | AD72: 27 | AE72: 13 | AF72: 14 | AG72: 0 | AH72: 0 | AI72: 0 | AJ72: 2 | AK72: 1 | AL72: 1 | AM72: 1 | AN72: 0 | AO72: 1 | AP72: 3 | AQ72: 3 | AR72: 0 | AS72: 3 | AT72: 2 | AU72: 1 | AV72: 0 | AW72: 0 | AX72: 0
B73: 68 | C73: 476 | D73: 293 | E73: 183 | F73: 240 | G73: 140 | H73: 100 | I73: 40 | J73: 23 | K73: 17 | L73: 58 | M73: 38 | N73: 20 | O73: 1 | P73: 0 | Q73: 1 | R73: 11 | S73: 8 | T73: 3 | U73: 47 | V73: 32 | W73: 15 | X73: 0 | Y73: 0 | Z73: 0 | AA73: 26 | AB73: 17 | AC73: 9 | AD73: 29 | AE73: 18 | AF73: 11 | AG73: 2 | AH73: 2 | AI73: 0 | AJ73: 9 | AK73: 5 | AL73: 4 | AM73: 6 | AN73: 5 | AO73: 1 | AP73: 1 | AQ73: 1 | AR73: 0 | AS73: 5 | AT73: 3 | AU73: 2 | AV73: 1 | AW73: 1 | AX73: 0
B74: 69 | C74: 481 | D74: 277 | E74: 204 | F74: 236 | G74: 132 | H74: 104 | I74: 44 | J74: 28 | K74: 16 | L74: 64 | M74: 30 | N74: 34 | O74: 4 | P74: 3 | Q74: 1 | R74: 11 | S74: 6 | T74: 5 | U74: 48 | V74: 32 | W74: 16 | X74: 0 | Y74: 0 | Z74: 0 | AA74: 23 | AB74: 19 | AC74: 4 | AD74: 38 | AE74: 19 | AF74: 19 | AG74: 1 | AH74: 0 | AI74: 1 | AJ74: 5 | AK74: 4 | AL74: 1 | AM74: 3 | AN74: 2 | AO74: 1 | AP74: 0 | AQ74: 0 | AR74: 0 | AS74: 2 | AT74: 1 | AU74: 1 | AV74: 2 | AW74: 1 | AX74: 1
B75: 70 | C75: 516 | D75: 308 | E75: 208 | F75: 255 | G75: 146 | H75: 109 | I75: 54 | J75: 33 | K75: 21 | L75: 57 | M75: 29 | N75: 28 | O75: 4 | P75: 3 | Q75: 1 | R75: 7 | S75: 3 | T75: 4 | U75: 59 | V75: 39 | W75: 20 | X75: 0 | Y75: 0 | Z75: 0 | AA75: 24 | AB75: 15 | AC75: 9 | AD75: 31 | AE75: 21 | AF75: 10 | AG75: 2 | AH75: 1 | AI75: 1 | AJ75: 9 | AK75: 7 | AL75: 2 | AM75: 5 | AN75: 5 | AO75: 0 | AP75: 0 | AQ75: 0 | AR75: 0 | AS75: 7 | AT75: 4 | AU75: 3 | AV75: 2 | AW75: 2 | AX75: 0
B76: 71 | C76: 502 | D76: 277 | E76: 225 | F76: 253 | G76: 129 | H76: 124 | I76: 47 | J76: 27 | K76: 20 | L76: 71 | M76: 47 | N76: 24 | O76: 4 | P76: 4 | Q76: 0 | R76: 4 | S76: 3 | T76: 1 | U76: 61 | V76: 31 | W76: 30 | X76: 0 | Y76: 0 | Z76: 0 | AA76: 14 | AB76: 4 | AC76: 10 | AD76: 30 | AE76: 23 | AF76: 7 | AG76: 0 | AH76: 0 | AI76: 0 | AJ76: 4 | AK76: 2 | AL76: 2 | AM76: 7 | AN76: 4 | AO76: 3 | AP76: 0 | AQ76: 0 | AR76: 0 | AS76: 6 | AT76: 3 | AU76: 3 | AV76: 1 | AW76: 0 | AX76: 1
B77: 72 | C77: 462 | D77: 266 | E77: 196 | F77: 223 | G77: 114 | H77: 109 | I77: 58 | J77: 29 | K77: 29 | L77: 71 | M77: 48 | N77: 23 | O77: 2 | P77: 2 | Q77: 0 | R77: 2 | S77: 1 | T77: 1 | U77: 46 | V77: 37 | W77: 9 | X77: 0 | Y77: 0 | Z77: 0 | AA77: 19 | AB77: 12 | AC77: 7 | AD77: 30 | AE77: 17 | AF77: 13 | AG77: 0 | AH77: 0 | AI77: 0 | AJ77: 2 | AK77: 1 | AL77: 1 | AM77: 4 | AN77: 2 | AO77: 2 | AP77: 0 | AQ77: 0 | AR77: 0 | AS77: 5 | AT77: 3 | AU77: 2 | AV77: 0 | AW77: 0 | AX77: 0
B78: 73 | C78: 504 | D78: 289 | E78: 215 | F78: 240 | G78: 118 | H78: 122 | I78: 55 | J78: 33 | K78: 22 | L78: 82 | M78: 51 | N78: 31 | O78: 5 | P78: 5 | Q78: 0 | R78: 6 | S78: 5 | T78: 1 | U78: 62 | V78: 42 | W78: 20 | X78: 0 | Y78: 0 | Z78: 0 | AA78: 14 | AB78: 9 | AC78: 5 | AD78: 26 | AE78: 17 | AF78: 9 | AG78: 0 | AH78: 0 | AI78: 0 | AJ78: 2 | AK78: 2 | AL78: 0 | AM78: 5 | AN78: 3 | AO78: 2 | AP78: 1 | AQ78: 0 | AR78: 1 | AS78: 6 | AT78: 4 | AU78: 2 | AV78: 0 | AW78: 0 | AX78: 0
B79: 74 | C79: 427 | D79: 218 | E79: 209 | F79: 207 | G79: 85 | H79: 122 | I79: 36 | J79: 19 | K79: 17 | L79: 77 | M79: 48 | N79: 29 | O79: 6 | P79: 6 | Q79: 0 | R79: 7 | S79: 5 | T79: 2 | U79: 48 | V79: 26 | W79: 22 | X79: 0 | Y79: 0 | Z79: 0 | AA79: 10 | AB79: 4 | AC79: 6 | AD79: 24 | AE79: 15 | AF79: 9 | AG79: 0 | AH79: 0 | AI79: 0 | AJ79: 3 | AK79: 3 | AL79: 0 | AM79: 3 | AN79: 3 | AO79: 0 | AP79: 1 | AQ79: 1 | AR79: 0 | AS79: 5 | AT79: 3 | AU79: 2 | AV79: 0 | AW79: 0 | AX79: 0
B80: 75 | C80: 535 | D80: 295 | E80: 240 | F80: 243 | G80: 119 | H80: 124 | I80: 63 | J80: 32 | K80: 31 | L80: 106 | M80: 70 | N80: 36 | O80: 4 | P80: 2 | Q80: 2 | R80: 5 | S80: 5 | T80: 0 | U80: 58 | V80: 33 | W80: 25 | X80: 0 | Y80: 0 | Z80: 0 | AA80: 16 | AB80: 12 | AC80: 4 | AD80: 25 | AE80: 12 | AF80: 13 | AG80: 0 | AH80: 0 | AI80: 0 | AJ80: 7 | AK80: 5 | AL80: 2 | AM80: 4 | AN80: 4 | AO80: 0 | AP80: 0 | AQ80: 0 | AR80: 0 | AS80: 4 | AT80: 1 | AU80: 3 | AV80: 0 | AW80: 0 | AX80: 0
B81: 76 | C81: 497 | D81: 252 | E81: 245 | F81: 231 | G81: 96 | H81: 135 | I81: 68 | J81: 38 | K81: 30 | L81: 97 | M81: 56 | N81: 41 | O81: 2 | P81: 2 | Q81: 0 | R81: 3 | S81: 2 | T81: 1 | U81: 51 | V81: 28 | W81: 23 | X81: 0 | Y81: 0 | Z81: 0 | AA81: 7 | AB81: 6 | AC81: 1 | AD81: 29 | AE81: 17 | AF81: 12 | AG81: 0 | AH81: 0 | AI81: 0 | AJ81: 4 | AK81: 4 | AL81: 0 | AM81: 2 | AN81: 2 | AO81: 0 | AP81: 0 | AQ81: 0 | AR81: 0 | AS81: 1 | AT81: 1 | AU81: 0 | AV81: 2 | AW81: 0 | AX81: 2
B82: 77 | C82: 527 | D82: 270 | E82: 257 | F82: 248 | G82: 115 | H82: 133 | I82: 65 | J82: 32 | K82: 33 | L82: 118 | M82: 73 | N82: 45 | O82: 6 | P82: 5 | Q82: 1 | R82: 0 | S82: 0 | T82: 0 | U82: 46 | V82: 24 | W82: 22 | X82: 0 | Y82: 0 | Z82: 0 | AA82: 9 | AB82: 3 | AC82: 6 | AD82: 17 | AE82: 8 | AF82: 9 | AG82: 0 | AH82: 0 | AI82: 0 | AJ82: 6 | AK82: 4 | AL82: 2 | AM82: 4 | AN82: 1 | AO82: 3 | AP82: 0 | AQ82: 0 | AR82: 0 | AS82: 8 | AT82: 5 | AU82: 3 | AV82: 0 | AW82: 0 | AX82: 0
B83: 78 | C83: 568 | D83: 296 | E83: 272 | F83: 260 | G83: 114 | H83: 146 | I83: 78 | J83: 42 | K83: 36 | L83: 127 | M83: 84 | N83: 43 | O83: 2 | P83: 1 | Q83: 1 | R83: 3 | S83: 1 | T83: 2 | U83: 61 | V83: 31 | W83: 30 | X83: 0 | Y83: 0 | Z83: 0 | AA83: 4 | AB83: 1 | AC83: 3 | AD83: 19 | AE83: 15 | AF83: 4 | AG83: 1 | AH83: 0 | AI83: 1 | AJ83: 2 | AK83: 1 | AL83: 1 | AM83: 1 | AN83: 0 | AO83: 1 | AP83: 0 | AQ83: 0 | AR83: 0 | AS83: 10 | AT83: 6 | AU83: 4 | AV83: 0 | AW83: 0 | AX83: 0
B84: 79 | C84: 440 | D84: 223 | E84: 217 | F84: 214 | G84: 88 | H84: 126 | I84: 56 | J84: 26 | K84: 30 | L84: 98 | M84: 67 | N84: 31 | O84: 4 | P84: 3 | Q84: 1 | R84: 0 | S84: 0 | T84: 0 | U84: 40 | V84: 23 | W84: 17 | X84: 0 | Y84: 0 | Z84: 0 | AA84: 4 | AB84: 3 | AC84: 1 | AD84: 16 | AE84: 8 | AF84: 8 | AG84: 0 | AH84: 0 | AI84: 0 | AJ84: 4 | AK84: 4 | AL84: 0 | AM84: 1 | AN84: 0 | AO84: 1 | AP84: 0 | AQ84: 0 | AR84: 0 | AS84: 3 | AT84: 1 | AU84: 2 | AV84: 0 | AW84: 0 | AX84: 0
B85: 80 | C85: 464 | D85: 231 | E85: 233 | F85: 204 | G85: 88 | H85: 116 | I85: 53 | J85: 32 | K85: 21 | L85: 123 | M85: 70 | N85: 53 | O85: 3 | P85: 2 | Q85: 1 | R85: 1 | S85: 0 | T85: 1 | U85: 51 | V85: 19 | W85: 32 | X85: 0 | Y85: 0 | Z85: 0 | AA85: 3 | AB85: 3 | AC85: 0 | AD85: 10 | AE85: 5 | AF85: 5 | AG85: 1 | AH85: 0 | AI85: 1 | AJ85: 6 | AK85: 4 | AL85: 2 | AM85: 1 | AN85: 1 | AO85: 0 | AP85: 1 | AQ85: 1 | AR85: 0 | AS85: 7 | AT85: 6 | AU85: 1 | AV85: 0 | AW85: 0 | AX85: 0
B86: 81 | C86: 466 | D86: 227 | E86: 239 | F86: 203 | G86: 74 | H86: 129 | I86: 45 | J86: 21 | K86: 24 | L86: 137 | M86: 78 | N86: 59 | O86: 3 | P86: 3 | Q86: 0 | R86: 1 | S86: 1 | T86: 0 | U86: 45 | V86: 27 | W86: 18 | X86: 0 | Y86: 0 | Z86: 0 | AA86: 3 | AB86: 3 | AC86: 0 | AD86: 18 | AE86: 12 | AF86: 6 | AG86: 0 | AH86: 0 | AI86: 0 | AJ86: 2 | AK86: 2 | AL86: 0 | AM86: 1 | AN86: 0 | AO86: 1 | AP86: 1 | AQ86: 1 | AR86: 0 | AS86: 6 | AT86: 5 | AU86: 1 | AV86: 1 | AW86: 0 | AX86: 1
B87: 82 | C87: 517 | D87: 235 | E87: 282 | F87: 220 | G87: 64 | H87: 156 | I87: 66 | J87: 39 | K87: 27 | L87: 167 | M87: 101 | N87: 66 | O87: 3 | P87: 2 | Q87: 1 | R87: 0 | S87: 0 | T87: 0 | U87: 31 | V87: 12 | W87: 19 | X87: 0 | Y87: 0 | Z87: 0 | AA87: 2 | AB87: 2 | AC87: 0 | AD87: 15 | AE87: 7 | AF87: 8 | AG87: 0 | AH87: 0 | AI87: 0 | AJ87: 4 | AK87: 3 | AL87: 1 | AM87: 1 | AN87: 0 | AO87: 1 | AP87: 1 | AQ87: 0 | AR87: 1 | AS87: 7 | AT87: 5 | AU87: 2 | AV87: 0 | AW87: 0 | AX87: 0
B88: 83 | C88: 547 | D88: 254 | E88: 293 | F88: 237 | G88: 83 | H88: 154 | I88: 60 | J88: 27 | K88: 33 | L88: 157 | M88: 90 | N88: 67 | O88: 1 | P88: 0 | Q88: 1 | R88: 2 | S88: 2 | T88: 0 | U88: 53 | V88: 32 | W88: 21 | X88: 0 | Y88: 0 | Z88: 0 | AA88: 1 | AB88: 0 | AC88: 1 | AD88: 19 | AE88: 10 | AF88: 9 | AG88: 0 | AH88: 0 | AI88: 0 | AJ88: 1 | AK88: 1 | AL88: 0 | AM88: 3 | AN88: 0 | AO88: 3 | AP88: 0 | AQ88: 0 | AR88: 0 | AS88: 12 | AT88: 8 | AU88: 4 | AV88: 1 | AW88: 1 | AX88: 0
B89: 84 | C89: 399 | D89: 178 | E89: 221 | F89: 159 | G89: 56 | H89: 103 | I89: 48 | J89: 24 | K89: 24 | L89: 125 | M89: 68 | N89: 57 | O89: 1 | P89: 1 | Q89: 0 | R89: 1 | S89: 1 | T89: 0 | U89: 33 | V89: 10 | W89: 23 | X89: 0 | Y89: 0 | Z89: 0 | AA89: 4 | AB89: 1 | AC89: 3 | AD89: 21 | AE89: 12 | AF89: 9 | AG89: 0 | AH89: 0 | AI89: 0 | AJ89: 0 | AK89: 0 | AL89: 0 | AM89: 0 | AN89: 0 | AO89: 0 | AP89: 0 | AQ89: 0 | AR89: 0 | AS89: 7 | AT89: 5 | AU89: 2 | AV89: 0 | AW89: 0 | AX89: 0
A90: 합계 | B90: 85 | C90: 380 | D90: 177 | E90: 203 | F90: 148 | G90: 53 | H90: 95 | I90: 38 | J90: 18 | K90: 20 | L90: 143 | M90: 81 | N90: 62 | O90: 2 | P90: 1 | Q90: 1 | R90: 0 | S90: 0 | T90: 0 | U90: 31 | V90: 14 | W90: 17 | X90: 0 | Y90: 0 | Z90: 0 | AA90: 0 | AB90: 0 | AC90: 0 | AD90: 11 | AE90: 6 | AF90: 5 | AG90: 0 | AH90: 0 | AI90: 0 | AJ90: 0 | AK90: 0 | AL90: 0 | AM90: 1 | AN90: 1 | AO90: 0 | AP90: 1 | AQ90: 0 | AR90: 1 | AS90: 5 | AT90: 3 | AU90: 2 | AV90: 0 | AW90: 0 | AX90: 0
B91: 86 | C91: 359 | D91: 152 | E91: 207 | F91: 129 | G91: 41 | H91: 88 | I91: 53 | J91: 25 | K91: 28 | L91: 127 | M91: 66 | N91: 61 | O91: 1 | P91: 1 | Q91: 0 | R91: 0 | S91: 0 | T91: 0 | U91: 32 | V91: 11 | W91: 21 | X91: 0 | Y91: 0 | Z91: 0 | AA91: 1 | AB91: 0 | AC91: 1 | AD91: 12 | AE91: 4 | AF91: 8 | AG91: 0 | AH91: 0 | AI91: 0 | AJ91: 2 | AK91: 2 | AL91: 0 | AM91: 0 | AN91: 0 | AO91: 0 | AP91: 0 | AQ91: 0 | AR91: 0 | AS91: 2 | AT91: 2 | AU91: 0 | AV91: 0 | AW91: 0 | AX91: 0
B92: 87 | C92: 310 | D92: 121 | E92: 189 | F92: 105 | G92: 29 | H92: 76 | I92: 24 | J92: 11 | K92: 13 | L92: 123 | M92: 55 | N92: 68 | O92: 1 | P92: 1 | Q92: 0 | R92: 2 | S92: 1 | T92: 1 | U92: 35 | V92: 12 | W92: 23 | X92: 0 | Y92: 0 | Z92: 0 | AA92: 0 | AB92: 0 | AC92: 0 | AD92: 10 | AE92: 5 | AF92: 5 | AG92: 1 | AH92: 1 | AI92: 0 | AJ92: 1 | AK92: 1 | AL92: 0 | AM92: 0 | AN92: 0 | AO92: 0 | AP92: 0 | AQ92: 0 | AR92: 0 | AS92: 8 | AT92: 5 | AU92: 3 | AV92: 0 | AW92: 0 | AX92: 0
B93: 88 | C93: 276 | D93: 104 | E93: 172 | F93: 114 | G93: 30 | H93: 84 | I93: 20 | J93: 10 | K93: 10 | L93: 105 | M93: 45 | N93: 60 | O93: 0 | P93: 0 | Q93: 0 | R93: 1 | S93: 1 | T93: 0 | U93: 23 | V93: 10 | W93: 13 | X93: 0 | Y93: 0 | Z93: 0 | AA93: 1 | AB93: 1 | AC93: 0 | AD93: 10 | AE93: 5 | AF93: 5 | AG93: 0 | AH93: 0 | AI93: 0 | AJ93: 1 | AK93: 1 | AL93: 0 | AM93: 0 | AN93: 0 | AO93: 0 | AP93: 0 | AQ93: 0 | AR93: 0 | AS93: 1 | AT93: 1 | AU93: 0 | AV93: 0 | AW93: 0 | AX93: 0
B94: 89 | C94: 221 | D94: 87 | E94: 134 | F94: 71 | G94: 18 | H94: 53 | I94: 24 | J94: 11 | K94: 13 | L94: 97 | M94: 43 | N94: 54 | O94: 1 | P94: 0 | Q94: 1 | R94: 0 | S94: 0 | T94: 0 | U94: 19 | V94: 10 | W94: 9 | X94: 0 | Y94: 0 | Z94: 0 | AA94: 0 | AB94: 0 | AC94: 0 | AD94: 6 | AE94: 3 | AF94: 3 | AG94: 0 | AH94: 0 | AI94: 0 | AJ94: 0 | AK94: 0 | AL94: 0 | AM94: 0 | AN94: 0 | AO94: 0 | AP94: 0 | AQ94: 0 | AR94: 0 | AS94: 3 | AT94: 2 | AU94: 1 | AV94: 0 | AW94: 0 | AX94: 0
B95: 90 | C95: 173 | D95: 54 | E95: 119 | F95: 69 | G95: 12 | H95: 57 | I95: 13 | J95: 2 | K95: 11 | L95: 71 | M95: 35 | N95: 36 | O95: 0 | P95: 0 | Q95: 0 | R95: 1 | S95: 0 | T95: 1 | U95: 11 | V95: 1 | W95: 10 | X95: 0 | Y95: 0 | Z95: 0 | AA95: 1 | AB95: 0 | AC95: 1 | AD95: 4 | AE95: 2 | AF95: 2 | AG95: 0 | AH95: 0 | AI95: 0 | AJ95: 0 | AK95: 0 | AL95: 0 | AM95: 0 | AN95: 0 | AO95: 0 | AP95: 0 | AQ95: 0 | AR95: 0 | AS95: 3 | AT95: 2 | AU95: 1 | AV95: 0 | AW95: 0 | AX95: 0
B96: 91 | C96: 151 | D96: 57 | E96: 94 | F96: 51 | G96: 11 | H96: 40 | I96: 10 | J96: 3 | K96: 7 | L96: 78 | M96: 37 | N96: 41 | O96: 0 | P96: 0 | Q96: 0 | R96: 0 | S96: 0 | T96: 0 | U96: 10 | V96: 5 | W96: 5 | X96: 0 | Y96: 0 | Z96: 0 | AA96: 0 | AB96: 0 | AC96: 0 | AD96: 1 | AE96: 1 | AF96: 0 | AG96: 0 | AH96: 0 | AI96: 0 | AJ96: 0 | AK96: 0 | AL96: 0 | AM96: 0 | AN96: 0 | AO96: 0 | AP96: 0 | AQ96: 0 | AR96: 0 | AS96: 1 | AT96: 0 | AU96: 1 | AV96: 0 | AW96: 0 | AX96: 0
B97: 92 | C97: 99 | D97: 37 | E97: 62 | F97: 23 | G97: 5 | H97: 18 | I97: 11 | J97: 5 | K97: 6 | L97: 54 | M97: 23 | N97: 31 | O97: 2 | P97: 1 | Q97: 1 | R97: 0 | S97: 0 | T97: 0 | U97: 8 | V97: 2 | W97: 6 | X97: 0 | Y97: 0 | Z97: 0 | AA97: 0 | AB97: 0 | AC97: 0 | AD97: 1 | AE97: 1 | AF97: 0 | AG97: 0 | AH97: 0 | AI97: 0 | AJ97: 0 | AK97: 0 | AL97: 0 | AM97: 0 | AN97: 0 | AO97: 0 | AP97: 0 | AQ97: 0 | AR97: 0 | AS97: 0 | AT97: 0 | AU97: 0 | AV97: 0 | AW97: 0 | AX97: 0
B98: 93 | C98: 62 | D98: 17 | E98: 45 | F98: 16 | G98: 2 | H98: 14 | I98: 3 | J98: 1 | K98: 2 | L98: 37 | M98: 14 | N98: 23 | O98: 1 | P98: 0 | Q98: 1 | R98: 0 | S98: 0 | T98: 0 | U98: 3 | V98: 0 | W98: 3 | X98: 0 | Y98: 0 | Z98: 0 | AA98: 0 | AB98: 0 | AC98: 0 | AD98: 2 | AE98: 0 | AF98: 2 | AG98: 0 | AH98: 0 | AI98: 0 | AJ98: 0 | AK98: 0 | AL98: 0 | AM98: 0 | AN98: 0 | AO98: 0 | AP98: 0 | AQ98: 0 | AR98: 0 | AS98: 0 | AT98: 0 | AU98: 0 | AV98: 0 | AW98: 0 | AX98: 0
B99: 94 | C99: 53 | D99: 19 | E99: 34 | F99: 13 | G99: 3 | H99: 10 | I99: 10 | J99: 3 | K99: 7 | L99: 25 | M99: 10 | N99: 15 | O99: 0 | P99: 0 | Q99: 0 | R99: 0 | S99: 0 | T99: 0 | U99: 2 | V99: 1 | W99: 1 | X99: 0 | Y99: 0 | Z99: 0 | AA99: 0 | AB99: 0 | AC99: 0 | AD99: 1 | AE99: 0 | AF99: 1 | AG99: 0 | AH99: 0 | AI99: 0 | AJ99: 0 | AK99: 0 | AL99: 0 | AM99: 0 | AN99: 0 | AO99: 0 | AP99: 0 | AQ99: 0 | AR99: 0 | AS99: 2 | AT99: 2 | AU99: 0 | AV99: 0 | AW99: 0 | AX99: 0
B100: 95 | C100: 35 | D100: 6 | E100: 29 | F100: 11 | G100: 0 | H100: 11 | I100: 2 | J100: 1 | K100: 1 | L100: 20 | M100: 4 | N100: 16 | O100: 0 | P100: 0 | Q100: 0 | R100: 0 | S100: 0 | T100: 0 | U100: 1 | V100: 0 | W100: 1 | X100: 0 | Y100: 0 | Z100: 0 | AA100: 0 | AB100: 0 | AC100: 0 | AD100: 1 | AE100: 1 | AF100: 0 | AG100: 0 | AH100: 0 | AI100: 0 | AJ100: 0 | AK100: 0 | AL100: 0 | AM100: 0 | AN100: 0 | AO100: 0 | AP100: 0 | AQ100: 0 | AR100: 0 | AS100: 0 | AT100: 0 | AU100: 0 | AV100: 0 | AW100: 0 | AX100: 0
B101: 96 | C101: 33 | D101: 15 | E101: 18 | F101: 10 | G101: 3 | H101: 7 | I101: 4 | J101: 2 | K101: 2 | L101: 15 | M101: 7 | N101: 8 | O101: 0 | P101: 0 | Q101: 0 | R101: 0 | S101: 0 | T101: 0 | U101: 2 | V101: 1 | W101: 1 | X101: 0 | Y101: 0 | Z101: 0 | AA101: 0 | AB101: 0 | AC101: 0 | AD101: 0 | AE101: 0 | AF101: 0 | AG101: 0 | AH101: 0 | AI101: 0 | AJ101: 1 | AK101: 1 | AL101: 0 | AM101: 0 | AN101: 0 | AO101: 0 | AP101: 0 | AQ101: 0 | AR101: 0 | AS101: 1 | AT101: 1 | AU101: 0 | AV101: 0 | AW101: 0 | AX101: 0
B102: 97 | C102: 20 | D102: 7 | E102: 13 | F102: 4 | G102: 0 | H102: 4 | I102: 2 | J102: 0 | K102: 2 | L102: 12 | M102: 6 | N102: 6 | O102: 0 | P102: 0 | Q102: 0 | R102: 0 | S102: 0 | T102: 0 | U102: 0 | V102: 0 | W102: 0 | X102: 0 | Y102: 0 | Z102: 0 | AA102: 0 | AB102: 0 | AC102: 0 | AD102: 0 | AE102: 0 | AF102: 0 | AG102: 0 | AH102: 0 | AI102: 0 | AJ102: 0 | AK102: 0 | AL102: 0 | AM102: 0 | AN102: 0 | AO102: 0 | AP102: 0 | AQ102: 0 | AR102: 0 | AS102: 2 | AT102: 1 | AU102: 1 | AV102: 0 | AW102: 0 | AX102: 0
B103: 98 | C103: 7 | D103: 4 | E103: 3 | F103: 3 | G103: 1 | H103: 2 | I103: 1 | J103: 1 | K103: 0 | L103: 3 | M103: 2 | N103: 1 | O103: 0 | P103: 0 | Q103: 0 | R103: 0 | S103: 0 | T103: 0 | U103: 0 | V103: 0 | W103: 0 | X103: 0 | Y103: 0 | Z103: 0 | AA103: 0 | AB103: 0 | AC103: 0 | AD103: 0 | AE103: 0 | AF103: 0 | AG103: 0 | AH103: 0 | AI103: 0 | AJ103: 0 | AK103: 0 | AL103: 0 | AM103: 0 | AN103: 0 | AO103: 0 | AP103: 0 | AQ103: 0 | AR103: 0 | AS103: 0 | AT103: 0 | AU103: 0 | AV103: 0 | AW103: 0 | AX103: 0
B104: 99 | C104: 7 | D104: 1 | E104: 6 | F104: 0 | G104: 0 | H104: 0 | I104: 0 | J104: 0 | K104: 0 | L104: 6 | M104: 1 | N104: 5 | O104: 0 | P104: 0 | Q104: 0 | R104: 0 | S104: 0 | T104: 0 | U104: 0 | V104: 0 | W104: 0 | X104: 0 | Y104: 0 | Z104: 0 | AA104: 0 | AB104: 0 | AC104: 0 | AD104: 0 | AE104: 0 | AF104: 0 | AG104: 0 | AH104: 0 | AI104: 0 | AJ104: 0 | AK104: 0 | AL104: 0 | AM104: 0 | AN104: 0 | AO104: 0 | AP104: 0 | AQ104: 0 | AR104: 0 | AS104: 1 | AT104: 0 | AU104: 1 | AV104: 0 | AW104: 0 | AX104: 0
B105: 100 | C105: 3 | D105: 2 | E105: 1 | F105: 2 | G105: 1 | H105: 1 | I105: 0 | J105: 0 | K105: 0 | L105: 1 | M105: 1 | N105: 0 | O105: 0 | P105: 0 | Q105: 0 | R105: 0 | S105: 0 | T105: 0 | U105: 0 | V105: 0 | W105: 0 | X105: 0 | Y105: 0 | Z105: 0 | AA105: 0 | AB105: 0 | AC105: 0 | AD105: 0 | AE105: 0 | AF105: 0 | AG105: 0 | AH105: 0 | AI105: 0 | AJ105: 0 | AK105: 0 | AL105: 0 | AM105: 0 | AN105: 0 | AO105: 0 | AP105: 0 | AQ105: 0 | AR105: 0 | AS105: 0 | AT105: 0 | AU105: 0 | AV105: 0 | AW105: 0 | AX105: 0
B106: 101 | C106: 5 | D106: 0 | E106: 5 | F106: 2 | G106: 0 | H106: 2 | I106: 0 | J106: 0 | K106: 0 | L106: 3 | M106: 0 | N106: 3 | O106: 0 | P106: 0 | Q106: 0 | R106: 0 | S106: 0 | T106: 0 | U106: 0 | V106: 0 | W106: 0 | X106: 0 | Y106: 0 | Z106: 0 | AA106: 0 | AB106: 0 | AC106: 0 | AD106: 0 | AE106: 0 | AF106: 0 | AG106: 0 | AH106: 0 | AI106: 0 | AJ106: 0 | AK106: 0 | AL106: 0 | AM106: 0 | AN106: 0 | AO106: 0 | AP106: 0 | AQ106: 0 | AR106: 0 | AS106: 0 | AT106: 0 | AU106: 0 | AV106: 0 | AW106: 0 | AX106: 0
B107: 102 | C107: 3 | D107: 1 | E107: 2 | F107: 1 | G107: 0 | H107: 1 | I107: 0 | J107: 0 | K107: 0 | L107: 2 | M107: 1 | N107: 1 | O107: 0 | P107: 0 | Q107: 0 | R107: 0 | S107: 0 | T107: 0 | U107: 0 | V107: 0 | W107: 0 | X107: 0 | Y107: 0 | Z107: 0 | AA107: 0 | AB107: 0 | AC107: 0 | AD107: 0 | AE107: 0 | AF107: 0 | AG107: 0 | AH107: 0 | AI107: 0 | AJ107: 0 | AK107: 0 | AL107: 0 | AM107: 0 | AN107: 0 | AO107: 0 | AP107: 0 | AQ107: 0 | AR107: 0 | AS107: 0 | AT107: 0 | AU107: 0 | AV107: 0 | AW107: 0 | AX107: 0
B108: 103 | C108: 2 | D108: 0 | E108: 2 | F108: 0 | G108: 0 | H108: 0 | I108: 0 | J108: 0 | K108: 0 | L108: 2 | M108: 0 | N108: 2 | O108: 0 | P108: 0 | Q108: 0 | R108: 0 | S108: 0 | T108: 0 | U108: 0 | V108: 0 | W108: 0 | X108: 0 | Y108: 0 | Z108: 0 | AA108: 0 | AB108: 0 | AC108: 0 | AD108: 0 | AE108: 0 | AF108: 0 | AG108: 0 | AH108: 0 | AI108: 0 | AJ108: 0 | AK108: 0 | AL108: 0 | AM108: 0 | AN108: 0 | AO108: 0 | AP108: 0 | AQ108: 0 | AR108: 0 | AS108: 0 | AT108: 0 | AU108: 0 | AV108: 0 | AW108: 0 | AX108: 0
B109: 104 | C109: 2 | D109: 2 | E109: 0 | F109: 1 | G109: 1 | H109: 0 | I109: 0 | J109: 0 | K109: 0 | L109: 1 | M109: 1 | N109: 0 | O109: 0 | P109: 0 | Q109: 0 | R109: 0 | S109: 0 | T109: 0 | U109: 0 | V109: 0 | W109: 0 | X109: 0 | Y109: 0 | Z109: 0 | AA109: 0 | AB109: 0 | AC109: 0 | AD109: 0 | AE109: 0 | AF109: 0 | AG109: 0 | AH109: 0 | AI109: 0 | AJ109: 0 | AK109: 0 | AL109: 0 | AM109: 0 | AN109: 0 | AO109: 0 | AP109: 0 | AQ109: 0 | AR109: 0 | AS109: 0 | AT109: 0 | AU109: 0 | AV109: 0 | AW109: 0 | AX109: 0
B110: 106 | C110: 1 | D110: 0 | E110: 1 | F110: 0 | G110: 0 | H110: 0 | I110: 0 | J110: 0 | K110: 0 | L110: 1 | M110: 0 | N110: 1 | O110: 0 | P110: 0 | Q110: 0 | R110: 0 | S110: 0 | T110: 0 | U110: 0 | V110: 0 | W110: 0 | X110: 0 | Y110: 0 | Z110: 0 | AA110: 0 | AB110: 0 | AC110: 0 | AD110: 0 | AE110: 0 | AF110: 0 | AG110: 0 | AH110: 0 | AI110: 0 | AJ110: 0 | AK110: 0 | AL110: 0 | AM110: 0 | AN110: 0 | AO110: 0 | AP110: 0 | AQ110: 0 | AR110: 0 | AS110: 0 | AT110: 0 | AU110: 0 | AV110: 0 | AW110: 0 | AX110: 0

Sheet Sheet1 (hidden)
A1: 구산동 | B1: 2238
A2: 역촌동 | B2: 2143
A3: 진관동 | B3: 1968
A4: 불광1동 | B4: 1720
A5: 녹번동 | B5: 1641
A6: 불광2동 | B6: 1442
A7: 응암3동 | B7: 1327
A8: 응암1동 | B8: 1326
A9: 대조동 | B9: 1230
A10: 신사1동 | B10: 1229
A11: 갈현2동 | B11: 1204
A12: 갈현1동 | B12: 1046
A13: 응암2동 | B13: 987
A14: 신사2동 | B14: 927
A15: 증산동 | B15: 703
A16: 수색동 | B16: 623

Sheet Sheet2 (hidden)
A1: 은평구 동별 장애인현황(유형별) (2024. 3월말)
A2: 동별 | B2: 합계 | E2: 지적 | H2: 자폐 | K2: 발달장애인 | N2: 발달장애인비율
B3: 합계 | C3: 남성 | D3: 여성 | E3: 소계 | F3: 남성 | G3: 여성 | H3: 소계 | I3: 남성 | J3: 여성 | K3: 소계 | L3: 남성 | M3: 여성
A4: 합 계 | B4: =C4+D4 -> 21234 | C4: =SUM(C5:C20) -> 12342 | D4: =SUM(D5:D20) -> 8892 | E4: =F4+G4 -> 1894 | F4: =SUM(F5:F20) -> 1243 | G4: =SUM(G5:G20) -> 651 | H4: =I4+J4 -> 518 | I4: =SUM(I5:I20) -> 428 | J4: =SUM(J5:J20) -> 90 | K4: =L4+M4 -> 2412 | L4: =F4+I4 -> 1671 | M4: =G4+J4 -> 741 | N4: =K4/B4 -> 0.11359141
A5: 녹번동 | B5: =C5+D5 -> 1626 | C5: =유형별!C5 -> 938 | D5: =유형별!D5 -> 688 | E5: =F5+G5 -> 112 | F5: =유형별!R5 -> 71 | G5: =유형별!S5 -> 41 | H5: =I5+J5 -> 23 | I5: =유형별!X5 -> 17 | J5: =유형별!Y5 -> 6 | K5: =E5+H5 -> 135 | L5: =F5+I5 -> 88 | M5: =G5+J5 -> 47 | N5: 0.08302583026
A6: 불광1동 | B6: 1608 | C6: =유형별!C6 -> 903 | D6: =유형별!D6 -> 705 | E6: 116 | F6: =유형별!R6 -> 68 | G6: =유형별!S6 -> 48 | H6: 33 | I6: =유형별!X6 -> 27 | J6: =유형별!Y6 -> 6 | K6: 149 | L6: 95 | M6: 54 | N6: 0.09266169154
A7: 불광2동 | B7: 1434 | C7: =유형별!C7 -> 836 | D7: =유형별!D7 -> 598 | E7: 116 | F7: =유형별!R7 -> 72 | G7: =유형별!S7 -> 44 | H7: 29 | I7: =유형별!X7 -> 29 | J7: =유형별!Y7 -> 0 | K7: 145 | L7: 101 | M7: 44 | N7: 0.1011157601
A8: 갈현1동 | B8: 680 | C8: =유형별!C8 -> 386 | D8: =유형별!D8 -> 294 | E8: 57 | F8: =유형별!R8 -> 37 | G8: =유형별!S8 -> 20 | H8: 19 | I8: =유형별!X8 -> 17 | J8: =유형별!Y8 -> 2 | K8: 76 | L8: 54 | M8: 22 | N8: 0.1117647059 | R8: =2206/21767 -> 0.1013460743
A9: 갈현2동 | B9: 1260 | C9: =유형별!C9 -> 733 | D9: =유형별!D9 -> 527 | E9: 108 | F9: =유형별!R9 -> 68 | G9: =유형별!S9 -> 40 | H9: 22 | I9: =유형별!X9 -> 15 | J9: =유형별!Y9 -> 7 | K9: 130 | L9: 83 | M9: 47 | N9: 0.1031746032
A10: 구산동 | B10: 2103 | C10: =유형별!C10 -> 1451 | D10: =유형별!D10 -> 652 | E10: 403 | F10: =유형별!R10 -> 312 | G10: =유형별!S10 -> 91 | H10: 50 | I10: =유형별!X10 -> 40 | J10: =유형별!Y10 -> 10 | K10: 453 | L10: 352 | M10: 101 | N10: 0.2154065621
A11: 대조동 | B11: 1223 | C11: =유형별!C11 -> 704 | D11: =유형별!D11 -> 519 | E11: 72 | F11: =유형별!R11 -> 48 | G11: =유형별!S11 -> 24 | H11: 28 | I11: =유형별!X11 -> 23 | J11: =유형별!Y11 -> 5 | K11: 100 | L11: 71 | M11: 29 | N11: 0.08176614881
A12: 응암1동 | B12: 1313 | C12: =유형별!C12 -> 712 | D12: =유형별!D12 -> 601 | E12: 74 | F12: =유형별!R12 -> 44 | G12: =유형별!S12 -> 30 | H12: 34 | I12: =유형별!X12 -> 29 | J12: =유형별!Y12 -> 5 | K12: 108 | L12: 73 | M12: 35 | N12: 0.08225437928
A13: 응암2동 | B13: 961 | C13: =유형별!C13 -> 533 | D13: =유형별!D13 -> 428 | E13: 71 | F13: =유형별!R13 -> 45 | G13: =유형별!S13 -> 26 | H13: 36 | I13: =유형별!X13 -> 30 | J13: =유형별!Y13 -> 6 | K13: 107 | L13: 75 | M13: 32 | N13: 0.1113423517
A14: 응암3동 | B14: 1313 | C14: =유형별!C14 -> 732 | D14: =유형별!D14 -> 581 | E14: 89 | F14: =유형별!R14 -> 59 | G14: =유형별!S14 -> 30 | H14: 21 | I14: =유형별!X14 -> 16 | J14: =유형별!Y14 -> 5 | K14: 110 | L14: 75 | M14: 35 | N14: 0.08377760853
A15: 역촌동 | B15: 2173 | C15: =유형별!C15 -> 1219 | D15: =유형별!D15 -> 954 | E15: 204 | F15: =유형별!R15 -> 126 | G15: =유형별!S15 -> 78 | H15: 43 | I15: =유형별!X15 -> 36 | J15: =유형별!Y15 -> 7 | K15: 247 | L15: 162 | M15: 85 | N15: 0.1136677405
A16: 신사1동 | B16: 1242 | C16: =유형별!C16 -> 734 | D16: =유형별!D16 -> 508 | E16: 146 | F16: =유형별!R16 -> 87 | G16: =유형별!S16 -> 59 | H16: 31 | I16: =유형별!X16 -> 24 | J16: =유형별!Y16 -> 7 | K16: 177 | L16: 111 | M16: 66 | N16: 0.1425120773
A17: 신사2동 | B17: 885 | C17: =유형별!C17 -> 508 | D17: =유형별!D17 -> 377 | E17: 80 | F17: =유형별!R17 -> 46 | G17: =유형별!S17 -> 34 | H17: 20 | I17: =유형별!X17 -> 16 | J17: =유형별!Y17 -> 4 | K17: 100 | L17: 62 | M17: 38 | N17: 0.1129943503
A18: 증산동 | B18: 661 | C18: =유형별!C18 -> 387 | D18: =유형별!D18 -> 274 | E18: 45 | F18: =유형별!R18 -> 29 | G18: =유형별!S18 -> 16 | H18: 16 | I18: =유형별!X18 -> 16 | J18: =유형별!Y18 -> 0 | K18: 61 | L18: 45 | M18: 16 | N18: 0.09228441755
A19: 수색동 | B19: 830 | C19: =유형별!C19 -> 445 | D19: =유형별!D19 -> 385 | E19: 64 | F19: =유형별!R19 -> 43 | G19: =유형별!S19 -> 21 | H19: 21 | I19: =유형별!X19 -> 17 | J19: =유형별!Y19 -> 4 | K19: 85 | L19: 60 | M19: 25 | N19: 0.1024096386
A20: 진관동 | B20: 1922 | C20: =유형별!C20 -> 1121 | D20: =유형별!D20 -> 801 | E20: 137 | F20: =유형별!R20 -> 88 | G20: =유형별!S20 -> 49 | H20: 92 | I20: =유형별!X20 -> 76 | J20: =유형별!Y20 -> 16 | K20: 229 | L20: 164 | M20: 65 | N20: 0.1191467222
A22: *발달장애인 수는 2,206명으로 전체 장애인의 10.1%

Sheet Sheet3 (hidden)
A2: 자치구 | B2: 장애유형 | C2: 2023 | G2: 자치구 | H2: 장애유형 | I2: 2022 | M2: 자치구 | N2: 장애유형 | O2: 2021
C3: 계 | D3: 남 | E3: 여 | I3: 계 | J3: 남 | K3: 여 | O3: 계 | P3: 남 | Q3: 여
A4: 은평구 | B4: 합 계 | C4: 21602 | D4: 12604 | E4: 8998 | G4: 은평구 | H4: 합 계 | I4: =SUM(I5:I19) -> 21753 | J4: =SUM(J5:J19) -> 12687 | K4: 9066 | M4: 은평구 | N4: 합 계 | O4: 21753 | P4: 12704 | Q4: 9049
B5: 지체 | C5: 8636 | D5: 4714 | E5: 3922 | H5: 지체 | I5: 8837 | J5: 4842 | K5: 3995 | N5: 지체 | O5: 8917 | P5: 4897 | Q5: 4020
B6: 시각 | C6: 2265 | D6: 1340 | E6: 925 | H6: 시각 | I6: 2274 | J6: 1364 | K6: 910 | N6: 시각 | O6: 2315 | P6: 1387 | Q6: 928
B7: 청각 | C7: 3350 | D7: 1869 | E7: 1481 | H7: 청각 | I7: 3350 | J7: 1853 | K7: 1497 | N7: 청각 | O7: 3282 | P7: 1814 | Q7: 1468
B8: 언어 | C8: 173 | D8: 124 | E8: 49 | H8: 언어 | I8: 181 | J8: 134 | K8: 47 | N8: 언어 | O8: 177 | P8: 129 | Q8: 48
B9: 지적 | C9: 1863 | D9: 1222 | E9: 641 | H9: 지적 | I9: 1828 | J9: 1200 | K9: 628 | N9: 지적 | O9: 1805 | P9: 1185 | Q9: 620
B10: 뇌병변 | C10: 2188 | D10: 1307 | E10: 881 | H10: 뇌병변 | I10: 2218 | J10: 1318 | K10: 900 | N10: 뇌병변 | O10: 2244 | P10: 1349 | Q10: 895
B11: 자폐성 | C11: 450 | D11: 377 | E11: 73 | H11: 자폐성 | I11: 396 | J11: 333 | K11: 63 | N11: 자폐성 | O11: 355 | P11: 298 | Q11: 57
B12: 정신 | C12: 1137 | D12: 696 | E12: 441 | H12: 정신 | I12: 1148 | J12: 705 | K12: 443 | N12: 정신 | O12: 1162 | P12: 718 | Q12: 444
B13: 신장 | C13: 928 | D13: 569 | E13: 359 | H13: 신장 | I13: 894 | J13: 542 | K13: 352 | N13: 신장 | O13: 874 | P13: 533 | Q13: 341
B14: 심장 | C14: 49 | D14: 26 | E14: 23 | H14: 심장 | I14: 55 | J14: 24 | K14: 31 | N14: 심장 | O14: 55 | P14: 26 | Q14: 29
B15: 호흡기 | C15: 122 | D15: 88 | E15: 34 | H15: 호흡기 | I15: 120 | J15: 86 | K15: 34 | N15: 호흡기 | O15: 130 | P15: 92 | Q15: 38
B16: 간 | C16: 164 | D16: 109 | E16: 55 | H16: 간 | I16: 168 | J16: 113 | K16: 55 | N16: 간 | O16: 166 | P16: 114 | Q16: 52
B17: 안면 | C17: 25 | D17: 13 | E17: 12 | H17: 안면 | I17: 22 | J17: 11 | K17: 11 | N17: 안면 | O17: 23 | P17: 12 | Q17: 11
B18: 장루.요루 | C18: 187 | D18: 118 | E18: 69 | H18: 장루.요루 | I18: 194 | J18: 126 | K18: 68 | N18: 장루.요루 | O18: 181 | P18: 114 | Q18: 67
B19: 뇌전증 | C19: 65 | D19: 32 | E19: 33 | H19: 뇌전증 | I19: 68 | J19: 36 | K19: 32 | N19: 뇌전증 | O19: 67 | P19: 36 | Q19: 31
C22: 2023 | D22: 2022 | E22: 2021 | G22: 2024 | H22: 2025 | I22: 2026 | J22: 2027 | K22: 2028
A23: 외부신체기능장애 | C23: =SUM(C5,C10,C6,C7,C8,C17) -> 16637 | D23: =SUM(I5,I10,I6,I7,I8,I17) -> 16882 | E23: =SUM(O5,O10,O6,O7,O8,O17) -> 16958 | G23: =C23+C23*$G$29 -> 16478.99841 | H23: =G23+G23*$G$29 -> 16322.49736 | I23: =H23+H23*$G$29 -> 16167.48261 | J23: =I23+I23*$G$29 -> 16013.94002 | K23: =J23+J23*$G$29 -> 15861.85563
A24: 내부기관장애 | C24: =SUM(C13,C14,C16,C15,C18,C19) -> 1515 | D24: =SUM(I13:I16,I18,I19) -> 1499 | E24: =SUM(O13:O16,O18:O19) -> 1473 | G24: =C24+C24*$G$30 -> 1536.4524 | H24: =G24+G24*$G$30 -> 1558.208566 | I24: =H24+H24*$G$30 -> 1580.272799 | J24: =I24+I24*$G$30 -> 1602.649462 | K24: =J24+J24*$G$30 -> 1625.342978
A25: 정신적장애 | C25: =SUM(C9,C12,C11) -> 3450 | D25: =SUM(I9,I11,I12) -> 3372 | E25: =SUM(O9,O11,O12) -> 3322 | G25: =C25+C25*$G$31 -> 3515.8605 | H25: =G25+G25*$G$31 -> 3582.978277 | I25: =H25+H25*$G$31 -> 3651.377332 | J25: =I25+I25*$G$31 -> 3721.082126 | K25: =J25+J25*$G$31 -> 3792.117583
A26: 계 | C26: =SUM(C23:C25) -> 21602 | D26: =SUM(D23:D25) -> 21753 | E26: =SUM(E23:E25) -> 21753 | G26: =SUM(G23:G25) -> 21531.31131 | H26: =SUM(H23:H25) -> 21463.68421 | I26: =SUM(I23:I25) -> 21399.13274 | J26: =SUM(J23:J25) -> 21337.67161 | K26: =SUM(K23:K25) -> 21279.3162
A29: 외부신체기능장애 | C29: =(D23-C23)/D23 -> 0.01451249852 | D29: 0.004481660573 | F29: =(C29+D29)/2 -> 0.009497079546 | G29: -0.009497
A30: 내부기관장애 | C30: -0.01067378252 | D30: -0.01765105227 | F30: =(C30+D30)/2 -> -0.0141624174 | G30: 0.01416
A31: 정신적장애 | C31: -0.0231316726 | D31: -0.01505117399 | F31: =(C31+D31)/2 -> -0.01909142329 | G31: 0.01909
A32: 계
C36: 2024 | D36: 2025 | E36: 2026 | F36: 2027 | G36: 2028
C37: -0.0026
A38: 외부신체기능장애 | B38: 16637 | C38: 16593.7438 | D38: 16550.60007 | E38: 16507.56851 | F38: 16464.64883 | G38: 16421.84074
A39: 내부기관장애 | B39: 1515 | C39: 1511.061 | D39: 1507.132241 | E39: 1503.213698 | F39: 1499.305342 | G39: 1495.407148
A40: 정신적장애 | B40: 3450 | C40: 3441.03 | D40: 3432.083322 | E40: 3423.159905 | F40: 3414.25969 | G40: 3405.382614
B41: 21602 | C41: 21545.8348 | D41: 21489.81563 | E41: 21433.94211 | F41: 21378.21386 | G41: 21322.6305
